Merchandising Type Category,Detailed Merchant Category,Supplier,Purchase Details,Transaction Date,Value,Department
Utility,Cable/Pay Tv Services,Netflix.Com,Supplies and Services related expenditure,01/07/2022,15.99,Director of Children's Services and Education
Business Services,Advertising Services,Facebk 7v8acf38z2,Supplies and Services related expenditure,01/07/2022,97.74,Director of Corporate Services
Other Supplies,Misc Speciality Retail,Amznmktplace,Supplies and Services related expenditure,01/07/2022,70.47,"Director of Housing, Neighbourhood and Building Services"
Hotels And Motels,Travelodge,Travelodge Gb0000,Agency and Third Party Payments related expenditure,01/07/2022,38.5,"Director of Housing, Neighbourhood and Building Services"
Hotels And Motels,Travelodge,Travelodge Gb0000,Agency and Third Party Payments related expenditure,01/07/2022,585.77,"Director of Housing, Neighbourhood and Building Services"
Hotels And Motels,Travelodge,Travelodge Gb0000,Agency and Third Party Payments related expenditure,01/07/2022,154,"Director of Housing, Neighbourhood and Building Services"
Hotels And Motels,Travelodge,Travelodge Gb0000,Agency and Third Party Payments related expenditure,01/07/2022,613.48,"Director of Housing, Neighbourhood and Building Services"
Facilities/Repair Supplies,Hardware Stores,Toolstation Uk,Premises related expenditure,01/07/2022,44.45,"Director of Housing, Neighbourhood and Building Services"
Personal Service Provider,Computer Program/Sys Design,Buzzsprout.Com Podcast,Supplies and Services related expenditure,01/07/2022,10.32,Solent LEP
Transportation Conveyor,Local Commuter Transport,Www.Wightlink.Co.Uk,Supplies and Services related expenditure,01/07/2022,36.2,Director of Children's Services and Education
Transportation Conveyor,Local Commuter Transport,Hovertravel Ltd- Ecomm,Supplies and Services related expenditure,01/07/2022,41.6,Director of Children's Services and Education
Personal Service Provider,Professional Services - Def,Iz *portsmouth Com,Supplies and Services related expenditure,01/07/2022,440,"Director of Housing, Neighbourhood and Building Services"
Government Service,Govt Serv - Default,Hampshire County Counc,Supplies and Services related expenditure,01/07/2022,42.51,Director of Children's Services and Education
Government Service,Govt Serv - Default,Hampshire County Counc,Supplies and Services related expenditure,01/07/2022,162.31,Director of Children's Services and Education
Transportation Conveyor,Taxicabs/Limousines,Aqua Cars,Supplies and Services related expenditure,01/07/2022,21.5,Director of Children's Services and Education
Other Supplies,Misc Speciality Retail,Www.Daisybabyshop.Co.U,Supplies and Services related expenditure,01/07/2022,5.82,Director of Children's Services and Education
Other Supplies,Misc Speciality Retail,Www.Daisybabyshop.Co.U,Supplies and Services related expenditure,01/07/2022,1.96,Director of Children's Services and Education
Equipment And Furniture,Furniture/Equip Stores,Www.Furnitureatwork.Co,Supplies and Services related expenditure,01/07/2022,98,Director of Children's Services and Education
Facilities/Repair Supplies,Home Supply Warehouse Stores,B & Q 1260,Premises related expenditure,01/07/2022,33.5,Director of Children's Services and Education
Business To Business Eqpt/Furn,Stationery/Office Supplies,Www.Banneruk.Com,Supplies and Services related expenditure,01/07/2022,14.94,Director of Regeneration
Type of Retail Store,Grocery Stores/Supermarkets,Wm Morrisons Store,Supplies and Services related expenditure,01/07/2022,38.91,Director of Adult Care
Automobile Services & Supplies,Service Stations,Park Gate Sf Connect,Supplies and Services related expenditure,01/07/2022,18.71,"Director of Culture, Leisure & Regulatory Services"
Type of Retail Store,Grocery Stores/Supermarkets,Tesco Stores 4579,Supplies and Services related expenditure,01/07/2022,1.92,Director of Children's Services and Education
Type of Retail Store,Grocery Stores/Supermarkets,Tesco Stores 4579,Supplies and Services related expenditure,01/07/2022,23.89,Director of Children's Services and Education
Business To Business Eqpt/Furn,Stationery/Office Supplies,Www.Banneruk.Com,Supplies and Services related expenditure,01/07/2022,10.28,Director of Adult Care
Government Service,Govt Serv - Default,Hampshire County Counc,Supplies and Services related expenditure,01/07/2022,11,Director of Adult Care
Other Supplies,Discount Stores,Argos Ltd,Supplies and Services related expenditure,01/07/2022,22.95,Director of Adult Care
Type of Retail Store,Grocery Stores/Supermarkets,Tesco Gift Card,Supplies and Services related expenditure,01/07/2022,100,Director of Adult Care
Business Services,Advertising Services,Google Ads5247259773,Supplies and Services related expenditure,01/07/2022,271.24,Director of Children's Services and Education
Digital Goods,Digital Goods - Applications (Excludes Games),Facebk *facebk Z6znlffqs2,Supplies and Services related expenditure,01/07/2022,61.92,Director of Children's Services and Education
Eating And Drinking Places,Eating Places/Restaurants,Iz *the Cottage In,Supplies and Services related expenditure,01/07/2022,5.55,Director of Portsmouth International Port
Other Supplies,Misc Speciality Retail,Snow & Rock,Supplies and Services related expenditure,01/07/2022,141.67,Director of Regeneration
Government Service,Govt Serv - Default,Hm Passport Office,Supplies and Services related expenditure,01/07/2022,75.5,Director of Children's Services and Education
Eating And Drinking Places,Fast Food Restaurants,McDonalds,Supplies and Services related expenditure,01/07/2022,6.39,Director of Children's Services and Education
Eating And Drinking Places,Fast Food Restaurants,Starbucks Coffee,Supplies and Services related expenditure,01/07/2022,6.91,Director of Children's Services and Education
Type of Retail Store,Grocery Stores/Supermarkets,Iceland Foods,Supplies and Services related expenditure,01/07/2022,113.28,Director of Adult Care
Business To Business Facility/,Hardware Equipment/Supplies,Cromwell Tools,Premises related expenditure,01/07/2022,57.98,Director of Portsmouth International Port
Facilities/Repair Supplies,Lumber/Build. Supply Stores,Www.Screwfix.Com,Premises related expenditure,01/07/2022,65.93,Director of Portsmouth International Port
Government Service,Schools - Default,M L (UK) Limited,Premises related expenditure,01/07/2022,675.3,Director of Portsmouth International Port
Transportation Conveyor,Taxicabs/Limousines,Sumup *taxi Driver,Supplies and Services related expenditure,01/07/2022,5.75,"Director of Housing, Neighbourhood and Building Services"
Business To Business Facility/,Industrial Supplies - Def,Arco Limited (Ahpp),Supplies and Services related expenditure,01/07/2022,66.74,Director of Portsmouth International Port
Transportation Conveyor,Taxicabs/Limousines,Aqua Cars,Supplies and Services related expenditure,01/07/2022,15.3,Director of Adult Care
Miscellaneous,Member Organizations - Def,Www.Ofcom.Org.Uk,Supplies and Services related expenditure,01/07/2022,75,Director of Corporate Services
Other Supplies,Misc Speciality Retail,Avery.Co.Uk,Supplies and Services related expenditure,01/07/2022,14.42,Director of Children's Services and Education
Facilities/Repair Supplies,Lawn/Garden Supply/Nursery,Www.Tudorenvironmental,Supplies and Services related expenditure,01/07/2022,248.3,"Director of Culture, Leisure & Regulatory Services"
Other Supplies,Gift/Card/Novelty And Souvenir Stores,Card Factory,Supplies and Services related expenditure,01/07/2022,0.83,Director of Children's Services and Education
Transportation Conveyor,"Parking Lots, Meters, Garages",Ncp Portsmouth Market Wa,Transport related expenditure,01/07/2022,2.45,Director of Children's Services and Education
Clothing Services,Mens/Womens Clothing Stores,Victory Sports,Supplies and Services related expenditure,01/07/2022,24.96,Director of Children's Services and Education
Type of Retail Store,Cigar Stores/Stands,The Vapour Room,Supplies and Services related expenditure,01/07/2022,33.32,Director of Children's Services and Education
Other Supplies,Discount Stores,Argos Ltd,Supplies and Services related expenditure,01/07/2022,83.32,Director of Children's Services and Education
Other Supplies,Misc Speciality Retail,Amznmktplace,Supplies and Services related expenditure,01/07/2022,3.34,"Director of Housing, Neighbourhood and Building Services"
Other Supplies,Misc Speciality Retail,Amznmktplace,Supplies and Services related expenditure,01/07/2022,3.96,"Director of Housing, Neighbourhood and Building Services"
Other Supplies,Misc Speciality Retail,Amznmktplace,Supplies and Services related expenditure,01/07/2022,11.66,"Director of Housing, Neighbourhood and Building Services"
Other Supplies,Misc Speciality Retail,Amznmktplace,Supplies and Services related expenditure,01/07/2022,14.46,"Director of Housing, Neighbourhood and Building Services"
Type of Retail Store,Grocery Stores/Supermarkets,Asda Stores,Supplies and Services related expenditure,01/07/2022,26.71,"Director of Housing, Neighbourhood and Building Services"
Type of Retail Store,Grocery Stores/Supermarkets,Asda Stores,Supplies and Services related expenditure,01/07/2022,0.83,"Director of Housing, Neighbourhood and Building Services"
Government Service,Vocational/Trade Schools,Https://Www.Citb.Co.Uk,Supplies and Services related expenditure,01/07/2022,99,"Director of Housing, Neighbourhood and Building Services"
Amusement/Entertainment,Amusement/Rec Serv - Def,Out Of Bounds,Agency and Third Party Payments related expenditure,01/07/2022,-21,Director of Children's Services and Education
Amusement/Entertainment,Amusement/Rec Serv - Def,Out Of Bounds,Agency and Third Party Payments related expenditure,01/07/2022,21,Director of Children's Services and Education
Amusement/Entertainment,Amusement/Rec Serv - Def,Out Of Bounds,Agency and Third Party Payments related expenditure,01/07/2022,24,Director of Children's Services and Education
Amusement/Entertainment,Amusement/Rec Serv - Def,Flip Out Chichester,Agency and Third Party Payments related expenditure,01/07/2022,34.17,Director of Children's Services and Education
Type of Retail Store,Grocery Stores/Supermarkets,Tesco Gift Card,Agency and Third Party Payments related expenditure,01/07/2022,50,Director of Children's Services and Education
Amusement/Entertainment,Amusement/Rec Serv - Def,Go Ape,Agency and Third Party Payments related expenditure,01/07/2022,66.67,Director of Children's Services and Education
Auto/Vehicle Expenses,Automated Fuel Dispensers,Tesco Pay At Pump 3777,Transport related expenditure,01/07/2022,62.87,Director of Children's Services and Education
Transportation Conveyor,Bus Lines/Charter/Tour,First Bus - Web,Supplies and Services related expenditure,01/07/2022,66,"Director of Housing, Neighbourhood and Building Services"
Type of Retail Store,Grocery Stores/Supermarkets,Tesco Store 3048,Supplies and Services related expenditure,01/07/2022,9.82,"Director of Housing, Neighbourhood and Building Services"
Other Supplies,Misc Speciality Retail,Amznmktplace,Supplies and Services related expenditure,01/07/2022,16.62,"Director of Housing, Neighbourhood and Building Services"
Type of Retail Store,Grocery Stores/Supermarkets,Iceland Foods,Supplies and Services related expenditure,01/07/2022,141,"Director of Housing, Neighbourhood and Building Services"
Caterers Food,Caterers,Bookerecomm,Supplies and Services related expenditure,01/07/2022,391.2,"Director of Housing, Neighbourhood and Building Services"
Type of Retail Store,Grocery Stores/Supermarkets,Asda Stores Ltd,Supplies and Services related expenditure,01/07/2022,120,Director of Children's Services and Education
Other Supplies,Misc Speciality Retail,W&p / Medirite,Premises related expenditure,01/07/2022,443.28,"Director of Housing, Neighbourhood and Building Services"
Business To Business Eqpt/Furn,Book Stores,Hse* Id-7460939,Supplies and Services related expenditure,01/07/2022,6.67,Director of Regeneration
Transportation Conveyor,Passenger Railways,Sw Railway App,Transport related expenditure,01/07/2022,26.6,Director of Regeneration
Type of Retail Store,Grocery Stores/Supermarkets,Asda Stores,Supplies and Services related expenditure,01/07/2022,2.92,Director of Adult Care
Facilities Maintenance,Specialty Cleaning/Polishing,Npl*new Pig Ltd,Premises related expenditure,01/07/2022,37.01,"Director of Culture, Leisure & Regulatory Services"
Hotels And Motels,Travelodge,Travelodge Gb0000,Agency and Third Party Payments related expenditure,01/07/2022,759.98,"Director of Housing, Neighbourhood and Building Services"
Type of Retail Store,Electronics Sales,Paypal,Supplies and Services related expenditure,01/07/2022,56,Director of Children's Services and Education
Facilities/Repair Supplies,Hardware Stores,Toolstation Uk,Supplies and Services related expenditure,01/07/2022,16.58,"Director of Housing, Neighbourhood and Building Services"
Automobiles and Vehicles,Trailer Camper Dealer,Blenworth Tyres Ltd,Supplies and Services related expenditure,01/07/2022,43.4,"Director of Housing, Neighbourhood and Building Services"
Business To Business Eqpt/Furn,Stationery/Office Supplies,Www.Banneruk.Com,Supplies and Services related expenditure,01/07/2022,-12.53,Director of Adult Care
Business To Business Eqpt/Furn,Stationery/Office Supplies,Www.Banneruk.Com,Supplies and Services related expenditure,01/07/2022,-12.53,Director of Adult Care
Digital Goods,"Digital Goods - Media, Books, Movies, Music",The Mj/Hemming Group L,Supplies and Services related expenditure,01/07/2022,140,Director of Finance & Resources
Other Supplies,Discount Stores,Argos Ltd,Supplies and Services related expenditure,01/07/2022,20.83,Director of Children's Services and Education
Type of Retail Store,Grocery Stores/Supermarkets,Tesco Gift Card,Supplies and Services related expenditure,01/07/2022,100,"Director of Housing, Neighbourhood and Building Services"
Type of Retail Store,Grocery Stores/Supermarkets,Lidl Gb Portsmouth,Supplies and Services related expenditure,01/07/2022,5.43,Director of Children's Services and Education
Type of Retail Store,Grocery Stores/Supermarkets,Lidl Gb Portsmouth,Supplies and Services related expenditure,01/07/2022,14.04,Director of Children's Services and Education
Facilities/Repair Supplies,Home Supply Warehouse Stores,B & Q 1260,Premises related expenditure,01/07/2022,16.5,Director of Adult Care
Type of Retail Store,Pet Stores/Food & Supply,Maidenhead Aquatics @,Supplies and Services related expenditure,01/07/2022,15.82,Director of Adult Care
Type of Retail Store,Grocery Stores/Supermarkets,Asda Groceries Online,Supplies and Services related expenditure,01/07/2022,-22.38,Director of Children's Services and Education
Type of Retail Store,Grocery Stores/Supermarkets,Asda Groceries Online,Supplies and Services related expenditure,01/07/2022,26.39,Director of Children's Services and Education
Type of Retail Store,Grocery Stores/Supermarkets,Asda Groceries Online,Supplies and Services related expenditure,01/07/2022,79.94,Director of Children's Services and Education
Government Service,Govt Serv - Default,Disclosure & Barring,Supplies and Services related expenditure,01/07/2022,13,Director of Children's Services and Education
Government Service,Govt Serv - Default,Disclosure & Barring,Supplies and Services related expenditure,01/07/2022,13,Director of Children's Services and Education
Government Service,Govt Serv - Default,Disclosure & Barring,Supplies and Services related expenditure,01/07/2022,13,Director of Children's Services and Education
Other Supplies,Discount Stores,Argos Ltd,Supplies and Services related expenditure,01/07/2022,29.98,Director of Regeneration
Business To Business Eqpt/Furn,Computer Software Stores,R H Environmental Ltd,Employees related expenditure,01/07/2022,360,"Director of Housing, Neighbourhood and Building Services"
Other Supplies,Misc Speciality Retail,Timpson Ltd,Supplies and Services related expenditure,01/07/2022,20,"Director of Culture, Leisure & Regulatory Services"
Clothing Services,Misc Apparel/Access Shops,Lovecrafts.Com,Supplies and Services related expenditure,01/07/2022,24.99,"Director of Culture, Leisure & Regulatory Services"
Clothing/Uniform Services,Dry Cleaners,Laundrycare Premier Servi,Supplies and Services related expenditure,01/07/2022,120,Director of Children's Services and Education
Eating And Drinking Places,Fast Food Restaurants,McDonalds,Agency and Third Party Payments related expenditure,01/07/2022,1.82,Director of Children's Services and Education
Eating And Drinking Places,Fast Food Restaurants,McDonalds,Agency and Third Party Payments related expenditure,01/07/2022,7.37,Director of Children's Services and Education
Type of Retail Store,Grocery Stores/Supermarkets,Southern Co-Op 0008,Supplies and Services related expenditure,01/07/2022,20,Director of Children's Services and Education
Eating And Drinking Places,Fast Food Restaurants,Drayton Fish Chips,Agency and Third Party Payments related expenditure,01/07/2022,24.7,Director of Children's Services and Education
Business To Business Eqpt/Furn,Stationery/Office Supplies,Www.Banneruk.Com,Supplies and Services related expenditure,01/07/2022,42.07,Director of Corporate Services
Business To Business Eqpt/Furn,Stationery/Office Supplies,Www.Banneruk.Com,Supplies and Services related expenditure,01/07/2022,42.06,Director of Corporate Services
Type of Retail Store,Grocery Stores/Supermarkets,Asda Stores,Supplies and Services related expenditure,01/07/2022,60,Director of Children's Services and Education
Other Supplies,Misc Speciality Retail,Amznmktplace,Supplies and Services related expenditure,01/07/2022,13.57,Director of Children's Services and Education
Type of Retail Store,Grocery Stores/Supermarkets,Tesco Stores 6002,Supplies and Services related expenditure,02/07/2022,12.5,Director of Children's Services and Education
Facilities/Repair Supplies,Lumber/Build. Supply Stores,Screwfix Dir Ltd,Premises related expenditure,02/07/2022,23.33,Director of Children's Services and Education
Other Supplies,Misc Gen Merchandise - Def,B&m 730 Hedge End,Supplies and Services related expenditure,02/07/2022,14.58,"Director of Housing, Neighbourhood and Building Services"
Government Service,Schools - Default,Worldmusicmethod,Supplies and Services related expenditure,02/07/2022,15,Director of Children's Services and Education
Type of Retail Store,Grocery Stores/Supermarkets,Asda Stores,Supplies and Services related expenditure,02/07/2022,10.33,"Director of Housing, Neighbourhood and Building Services"
Other Supplies,Misc Speciality Retail,Amznmktplace,Capital related expenditure,02/07/2022,72.07,"Capital - Culture, Leisure & Economic Development"
Type of Retail Store,Grocery Stores/Supermarkets,Asda Groceries Online,Supplies and Services related expenditure,02/07/2022,-2.38,Director of Adult Care
Type of Retail Store,Grocery Stores/Supermarkets,Asda Groceries Online,Supplies and Services related expenditure,02/07/2022,-4.8,Director of Adult Care
Type of Retail Store,Grocery Stores/Supermarkets,Asda Groceries Online,Supplies and Services related expenditure,02/07/2022,111.2,Director of Adult Care
Eating And Drinking Places,Eating Places/Restaurants,Greggs Plc,Agency and Third Party Payments related expenditure,02/07/2022,2.04,Director of Children's Services and Education
Eating And Drinking Places,Eating Places/Restaurants,Greggs Plc,Agency and Third Party Payments related expenditure,02/07/2022,1.75,Director of Children's Services and Education
Transportation Conveyor,"Parking Lots, Meters, Garages",Ncp Portsmouth Market Wa,Transport related expenditure,02/07/2022,7.35,Director of Children's Services and Education
Type of Retail Store,Grocery Stores/Supermarkets,Tesco Stores 4579,Supplies and Services related expenditure,02/07/2022,0.83,Director of Children's Services and Education
Type of Retail Store,Grocery Stores/Supermarkets,Tesco Stores 4579,Supplies and Services related expenditure,02/07/2022,20,Director of Children's Services and Education
Type of Retail Store,Grocery Stores/Supermarkets,Tesco Stores 4579,Supplies and Services related expenditure,02/07/2022,59.17,Director of Children's Services and Education
Type of Retail Store,Grocery Stores/Supermarkets,Tesco Stores 4579,Supplies and Services related expenditure,02/07/2022,50.67,Director of Children's Services and Education
Type of Retail Store,Grocery Stores/Supermarkets,Iceland Foods,Supplies and Services related expenditure,02/07/2022,-1,"Director of Housing, Neighbourhood and Building Services"
Transportation Conveyor,Taxicabs/Limousines,Ccs*aqua Cars Ltd,Supplies and Services related expenditure,02/07/2022,5.2,"Director of Housing, Neighbourhood and Building Services"
Miscellaneous,Continuity/Subscription Mercht,Amazon Prime,Supplies and Services related expenditure,02/07/2022,6.66,"Director of Housing, Neighbourhood and Building Services"
Type of Retail Store,Grocery Stores/Supermarkets,Tesco Store 3048,Supplies and Services related expenditure,02/07/2022,142.83,"Director of Housing, Neighbourhood and Building Services"
Type of Retail Store,Grocery Stores/Supermarkets,Baybridge Convenience,Supplies and Services related expenditure,02/07/2022,3.32,Director of Children's Services and Education
Type of Retail Store,Grocery Stores/Supermarkets,One Stop 2855,Agency and Third Party Payments related expenditure,02/07/2022,4.75,Director of Children's Services and Education
Eating And Drinking Places,Eating Places/Restaurants,Canoe Lake Cafe,Agency and Third Party Payments related expenditure,02/07/2022,10.3,Director of Children's Services and Education
Facilities/Repair Supplies,Misc Home Furnishing,The Range,Premises related expenditure,02/07/2022,1.66,"Director of Culture, Leisure & Regulatory Services"
Type of Retail Store,Grocery Stores/Supermarkets,Tesco Store 3055,Supplies and Services related expenditure,02/07/2022,17.42,"Director of Housing, Neighbourhood and Building Services"
Other Supplies,Misc Speciality Retail,Amznmktplace,Supplies and Services related expenditure,02/07/2022,77.91,Solent LEP
Eating And Drinking Places,Eating Places/Restaurants,Coffee No 1 Southsea,Supplies and Services related expenditure,02/07/2022,4.04,Director of Children's Services and Education
Facilities/Repair Supplies,Hardware Stores,Robert Dyas Holdng Ltd,Supplies and Services related expenditure,02/07/2022,4.57,Director of Children's Services and Education
Eating And Drinking Places,Eating Places/Restaurants,Coffee No 1 Southsea,Supplies and Services related expenditure,02/07/2022,11.5,Director of Children's Services and Education
Clothing Services,Misc Apparel/Access Shops,Sq *love Southsea,Supplies and Services related expenditure,02/07/2022,15,Director of Children's Services and Education
Facilities/Repair Supplies,Hardware Stores,Robert Dyas Holdng Ltd,Agency and Third Party Payments related expenditure,02/07/2022,3.28,Director of Children's Services and Education
Other Supplies,Misc Speciality Retail,Iz *grounded In So,Agency and Third Party Payments related expenditure,02/07/2022,7,Director of Children's Services and Education
Eating And Drinking Places,Eating Places/Restaurants,The Lord Palmersto,Agency and Third Party Payments related expenditure,02/07/2022,9.07,Director of Children's Services and Education
Other Supplies,Gift/Card/Novelty And Souvenir Stores,Card Factory,Supplies and Services related expenditure,02/07/2022,30.42,Director of Children's Services and Education
Caterers Food,Caterers,Booker Limited Portsmouth,Supplies and Services related expenditure,02/07/2022,34.45,Director of Children's Services and Education
Other Supplies,Misc Speciality Retail,Amznmktplace,Supplies and Services related expenditure,02/07/2022,103.32,Director of Children's Services and Education
Miscellaneous,Member Organizations - Def,National World,Supplies and Services related expenditure,03/07/2022,91.58,Director of Regeneration
Other Supplies,Misc Speciality Retail,Amznmktplace,Supplies and Services related expenditure,03/07/2022,7.49,"Director of Housing, Neighbourhood and Building Services"
Other Supplies,Misc Speciality Retail,Amznmktplace,Premises related expenditure,03/07/2022,8.67,Director of Adult Care
Other Supplies,Misc Speciality Retail,Amznmktplace,Premises related expenditure,03/07/2022,9.83,Director of Adult Care
Other Supplies,Misc Speciality Retail,Amznbusiness,Supplies and Services related expenditure,03/07/2022,6.66,Director of Children's Services and Education
Type of Retail Store,Misc Food Stores - Default,Nya*revive Vending Ltd,Agency and Third Party Payments related expenditure,03/07/2022,1.2,Director of Children's Services and Education
Type of Retail Store,Misc Food Stores - Default,Nya*revive Vending Ltd,Agency and Third Party Payments related expenditure,03/07/2022,2.3,Director of Children's Services and Education
Transportation Conveyor,Passenger Railways,Sw Railway On Board,Transport related expenditure,03/07/2022,4,Director of Children's Services and Education
Eating And Drinking Places,Eating Places/Restaurants,Iz *little Johns T,Agency and Third Party Payments related expenditure,03/07/2022,5,Director of Children's Services and Education
Other Supplies,Misc Gen Merchandise - Def,Matrix Retail Leasing,Agency and Third Party Payments related expenditure,03/07/2022,5,Director of Children's Services and Education
Transportation Conveyor,Bus Lines/Charter/Tour,Go South Coast,Transport related expenditure,03/07/2022,6.4,Director of Children's Services and Education
Transportation Conveyor,Bus Lines/Charter/Tour,Go South Coast,Transport related expenditure,03/07/2022,7.2,Director of Children's Services and Education
Eating And Drinking Places,Fast Food Restaurants,Starbucks Coffee,Agency and Third Party Payments related expenditure,03/07/2022,7.58,Director of Children's Services and Education
Eating And Drinking Places,Fast Food Restaurants,Starbucks Coffee,Agency and Third Party Payments related expenditure,03/07/2022,11.85,Director of Children's Services and Education
Eating And Drinking Places,Eating Places/Restaurants,Michelangelo Italian R,Agency and Third Party Payments related expenditure,03/07/2022,34.8,Director of Children's Services and Education
Transportation Conveyor,Local Commuter Transport,Www.Wightlink.Co.Uk,Transport related expenditure,03/07/2022,37.6,Director of Children's Services and Education
Type of Retail Store,Grocery Stores/Supermarkets,Tesco Stores 4579,Supplies and Services related expenditure,03/07/2022,31.4,Director of Children's Services and Education
Other Supplies,Misc Speciality Retail,Amznmktplace,Supplies and Services related expenditure,03/07/2022,18.3,Director of Children's Services and Education
Amusement/Entertainment,Motion Picture Theatres,Vue Cinemas,Agency and Third Party Payments related expenditure,03/07/2022,8.32,Director of Children's Services and Education
Type of Retail Store,Grocery Stores/Supermarkets,Tesco Stores 4579,Supplies and Services related expenditure,03/07/2022,19.65,Director of Children's Services and Education
Business To Business Facility/,Industrial Supplies - Def,Arco Limited (Ahpp),Supplies and Services related expenditure,01/07/2022,89,"Director of Housing, Neighbourhood and Building Services"
Business To Business Facility/,Industrial Supplies - Def,Arco Limited (Ahpp),Supplies and Services related expenditure,01/07/2022,112.11,Director of Portsmouth International Port
Government Service,Schools - Default,Ncs*citb Exam,Supplies and Services related expenditure,01/07/2022,22.5,Director of Regeneration
Type of Retail Store,Candy/Nut/Confection Store,World Of Sweets Hancocks,Supplies and Services related expenditure,01/07/2022,206.59,Director of Children's Services and Education
Business Services,Business Services - Default,Siteground Hosting,Supplies and Services related expenditure,04/07/2022,14.99,Director of Regeneration
Government Service,Govt Serv - Default,Disclosure And Barring,Employees related expenditure,04/07/2022,18,"Director of Housing, Neighbourhood and Building Services"
Government Service,Govt Serv - Default,Disclosure And Barring,Employees related expenditure,04/07/2022,18,"Director of Housing, Neighbourhood and Building Services"
Government Service,Govt Serv - Default,Www.Moneyclaim.Gov,Supplies and Services related expenditure,04/07/2022,35,Director of Finance & Resources
Government Service,Govt Serv - Default,Www.Moneyclaim.Gov,Supplies and Services related expenditure,04/07/2022,50,Director of Finance & Resources
Government Service,Govt Serv - Default,Www.Moneyclaim.Gov,Supplies and Services related expenditure,04/07/2022,50,Director of Finance & Resources
Equipment And Furniture,Furniture/Equip Stores,Www.Furnitureatwork.Co,Supplies and Services related expenditure,04/07/2022,22,Director of Children's Services and Education
Other Supplies,Discount Stores,Argos Ltd,Supplies and Services related expenditure,04/07/2022,112.5,Director of Children's Services and Education
Other Supplies,Discount Stores,Argos Ltd,Supplies and Services related expenditure,04/07/2022,2.46,Director of Children's Services and Education
Other Supplies,Misc Speciality Retail,W&p / Medirite,Premises related expenditure,04/07/2022,78.6,"Director of Housing, Neighbourhood and Building Services"
Facilities/Repair Supplies,Hardware Stores,Www.Lsengineers.Co.Uk,Supplies and Services related expenditure,04/07/2022,134.15,"Director of Housing, Neighbourhood and Building Services"
Other Supplies,Misc Speciality Retail,W&p / Medirite,Premises related expenditure,04/07/2022,184.3,"Director of Housing, Neighbourhood and Building Services"
Transportation Conveyor,"Parking Lots, Meters, Garages",Gunwharf Quays,Transport related expenditure,04/07/2022,2.42,Director of Children's Services and Education
Eating And Drinking Places,Bars/Taverns/Lounges/Discos,Cosy Club Portsmouth,Agency and Third Party Payments related expenditure,04/07/2022,14.15,Director of Children's Services and Education
Other Supplies,Misc Speciality Retail,Amznmktplace,Supplies and Services related expenditure,04/07/2022,192.36,Director of Children's Services and Education
Type of Retail Store,Grocery Stores/Supermarkets,Sainsburys S/mkt,Supplies and Services related expenditure,04/07/2022,22.15,Director of Adult Care
Facilities/Repair Supplies,Lawn/Garden Supply/Nursery,M & S Enterprises,Supplies and Services related expenditure,04/07/2022,243.36,"Director of Housing, Neighbourhood and Building Services"
Type of Retail Store,Grocery Stores/Supermarkets,Tesco Stores 4579,Supplies and Services related expenditure,04/07/2022,20.9,Director of Adult Care
Government Service,Govt Serv - Default,Portsmouth City Co,Supplies and Services related expenditure,04/07/2022,76,Director of Children's Services and Education
Equipment And Furniture,Phone Serv/Equip Non-Util,O2 Uk,Supplies and Services related expenditure,04/07/2022,10,Director of Children's Services and Education
Transportation Conveyor,Passenger Railways,Www.Redspottedhanky.Co,Transport related expenditure,04/07/2022,28,Director of Children's Services and Education
Other Supplies,Misc Speciality Retail,Amznmktplace,Supplies and Services related expenditure,04/07/2022,19.89,Director of Children's Services and Education
Miscellaneous,Misc Personal Serv - Def,Solentculturalent,Supplies and Services related expenditure,04/07/2022,92.5,Director of Children's Services and Education
Other Supplies,Misc Speciality Retail,Amznmktplace,Supplies and Services related expenditure,04/07/2022,9.16,Director of Children's Services and Education
Type of Retail Store,Grocery Stores/Supermarkets,Asda Groceries Online,Supplies and Services related expenditure,04/07/2022,10.42,Director of Children's Services and Education
Type of Retail Store,Grocery Stores/Supermarkets,Asda Groceries Online,Supplies and Services related expenditure,04/07/2022,42.71,Director of Children's Services and Education
Type of Retail Store,Grocery Stores/Supermarkets,Asda Groceries Online,Supplies and Services related expenditure,04/07/2022,92.69,Director of Children's Services and Education
Government Service,Schools - Default,Language Angels,Supplies and Services related expenditure,04/07/2022,199,Director of Children's Services and Education
Business To Business Eqpt/Furn,Computer Software Stores,Currys Business,Supplies and Services related expenditure,04/07/2022,257.32,Director of Children's Services and Education
Facilities/Repair Supplies,Home Supply Warehouse Stores,B & Q 1260,Supplies and Services related expenditure,04/07/2022,47.5,"Director of Housing, Neighbourhood and Building Services"
Business To Business Facility/,Electrical Parts/Equipment,Edmundson Electrical,Premises related expenditure,04/07/2022,123.72,Director of Portsmouth International Port
Business To Business Facility/,Electrical Parts/Equipment,Edmundson Electrical,Premises related expenditure,04/07/2022,466.9,Director of Portsmouth International Port
Facilities/Repair Supplies,Drapery & Upholstery Stores,Blinds 2 Go Ltd,Premises related expenditure,04/07/2022,52.37,"Director of Housing, Neighbourhood and Building Services"
Eating And Drinking Places,Fast Food Restaurants,43040140 Costa Coffee,Supplies and Services related expenditure,04/07/2022,3.25,Director of Children's Services and Education
Other Supplies,Discount Stores,Poundland Ltd 1210,Supplies and Services related expenditure,04/07/2022,5.2,Director of Children's Services and Education
Other Supplies,Discount Stores,Theworks,Supplies and Services related expenditure,04/07/2022,13.33,Director of Children's Services and Education
Other Supplies,Misc Speciality Retail,Amznmktplace,Supplies and Services related expenditure,04/07/2022,24.9,"Director of Housing, Neighbourhood and Building Services"
Type of Retail Store,Grocery Stores/Supermarkets,Tesco Store 3055,Supplies and Services related expenditure,04/07/2022,7.85,Director of Children's Services and Education
Type of Retail Store,Grocery Stores/Supermarkets,Tesco Store 3055,Supplies and Services related expenditure,04/07/2022,9,Director of Children's Services and Education
Type of Retail Store,Grocery Stores/Supermarkets,Tesco Store 3055,Supplies and Services related expenditure,04/07/2022,38.2,Director of Children's Services and Education
Type of Retail Store,Grocery Stores/Supermarkets,Tesco Store 3055,Supplies and Services related expenditure,04/07/2022,27.42,Director of Children's Services and Education
Government Service,Govt Serv - Default,Hampshire County Counc,Supplies and Services related expenditure,04/07/2022,108.54,Director of Children's Services and Education
Other Supplies,Misc Speciality Retail,Net World Sports,Supplies and Services related expenditure,04/07/2022,217.63,Director of Children's Services and Education
Business To Business Facility/,Industrial Supplies - Def,Arco Limited (Sap),Supplies and Services related expenditure,04/07/2022,113.66,Director of Portsmouth International Port
Digital Goods,Digital Goods - Large Digital Goods Merchant,Mailchimp,Supplies and Services related expenditure,04/07/2022,62.11,"Director of Culture, Leisure & Regulatory Services"
Type of Retail Store,Grocery Stores/Supermarkets,Asda Groceries Online,Supplies and Services related expenditure,04/07/2022,-0.6,Director of Children's Services and Education
Type of Retail Store,Grocery Stores/Supermarkets,Asda Groceries Online,Supplies and Services related expenditure,04/07/2022,43.85,Director of Children's Services and Education
Facilities/Repair Supplies,Lawn/Garden Supply/Nursery,Www.Tudorenvironmental,Supplies and Services related expenditure,04/07/2022,389.12,"Director of Culture, Leisure & Regulatory Services"
Utility,Phone Serv/Equip Utility,Zoom.Us 888-799-9666,Supplies and Services related expenditure,04/07/2022,11.99,Director of Children's Services and Education
Business To Business Eqpt/Furn,Stationery/Office Supplies,Www.Banneruk.Com,Supplies and Services related expenditure,04/07/2022,16.81,Director of Children's Services and Education
Utility,Phone Serv/Equip Utility,Lebara Mobile Limited,Supplies and Services related expenditure,04/07/2022,10,Director of Adult Care
Type of Retail Store,Grocery Stores/Supermarkets,Sainsburys S/mkts,Supplies and Services related expenditure,04/07/2022,3.25,Director of Children's Services and Education
Type of Retail Store,Grocery Stores/Supermarkets,Sainsburys S/mkts,Supplies and Services related expenditure,04/07/2022,9,Director of Children's Services and Education
Other Supplies,Misc Speciality Retail,Amznmktplace,Premises related expenditure,04/07/2022,27.46,Director of Children's Services and Education
Type of Retail Store,Children/Infants Wear Store,Www.Muddyfaces.Co.Uk,Premises related expenditure,04/07/2022,28.94,Director of Children's Services and Education
Other Supplies,Misc Speciality Retail,Amznmktplace,Supplies and Services related expenditure,04/07/2022,32.49,Director of Children's Services and Education
Other Supplies,Misc Speciality Retail,Amznmktplace,Supplies and Services related expenditure,04/07/2022,44.98,Director of Children's Services and Education
Type of Retail Store,Sporting Goods Stores,Newitts.Com,Supplies and Services related expenditure,04/07/2022,49.58,Director of Children's Services and Education
Medical,Lab/Med/Hospital Equipment,Rnib Charity,Supplies and Services related expenditure,04/07/2022,55.5,Director of Children's Services and Education
Miscellaneous,Elementary/Secondary School,Paypal,Supplies and Services related expenditure,04/07/2022,60,Director of Children's Services and Education
Other Supplies,Misc Speciality Retail,Iz *crossfield Cre,Supplies and Services related expenditure,04/07/2022,116,Director of Children's Services and Education
Business Services,Business Services - Default,Voucher Express,Supplies and Services related expenditure,04/07/2022,260.75,Director of Children's Services and Education
Facilities/Repair Services,Spec Contractors - Default,Trophystore.Co.Uk Limited,Supplies and Services related expenditure,04/07/2022,74.77,Director of Children's Services and Education
Type of Retail Store,Misc Food Stores - Default,Keepitsweet,Supplies and Services related expenditure,04/07/2022,103.21,Director of Children's Services and Education
Medical,Lab/Med/Hospital Equipment,Www.Defib4life.Co.Uk,Supplies and Services related expenditure,04/07/2022,41.99,Director of Children's Services and Education
Type of Retail Store,Grocery Stores/Supermarkets,Iceland,Supplies and Services related expenditure,04/07/2022,15.83,"Director of Housing, Neighbourhood and Building Services"
Type of Retail Store,Grocery Stores/Supermarkets,Asda Stores,Supplies and Services related expenditure,04/07/2022,176.54,"Director of Housing, Neighbourhood and Building Services"
Transportation Conveyor,Bus Lines/Charter/Tour,First Bus - Web,Supplies and Services related expenditure,04/07/2022,17,Director of Children's Services and Education
Business Expenses/Services,Postage Stamps,Post Office Counter,Supplies and Services related expenditure,04/07/2022,5.55,Director of Children's Services and Education
Miscellaneous,Fines,Southeasternrailway.Co.Uk,Transport related expenditure,04/07/2022,20,Director of Children's Services and Education
Business To Business Eqpt/Furn,Stationery/Office Supplies,Www.Banneruk.Com,Supplies and Services related expenditure,04/07/2022,15.68,"Director of Housing, Neighbourhood and Building Services"
Business To Business Eqpt/Furn,Stationery/Office Supplies,Www.Banneruk.Com,Supplies and Services related expenditure,04/07/2022,86.89,"Director of Housing, Neighbourhood and Building Services"
Type of Retail Store,Grocery Stores/Supermarkets,Tesco Store 3048,Supplies and Services related expenditure,04/07/2022,7.16,"Director of Housing, Neighbourhood and Building Services"
Type of Retail Store,Grocery Stores/Supermarkets,Asda Stores,Supplies and Services related expenditure,04/07/2022,7.6,"Director of Housing, Neighbourhood and Building Services"
Other Supplies,Misc Gen Merchandise - Def,Wilko Retail Limited,Supplies and Services related expenditure,04/07/2022,8.5,"Director of Housing, Neighbourhood and Building Services"
Other Supplies,Misc Speciality Retail,Amz*amazon.Co.Uk,Supplies and Services related expenditure,04/07/2022,-11.74,"Director of Housing, Neighbourhood and Building Services"
Other Supplies,Discount Stores,Argos Ltd,Supplies and Services related expenditure,04/07/2022,15.99,Director of Children's Services and Education
Type of Retail Store,Grocery Stores/Supermarkets,Asda Stores Ltd,Supplies and Services related expenditure,04/07/2022,30,Director of Children's Services and Education
Other Supplies,Misc Speciality Retail,W&p / Medirite,Premises related expenditure,04/07/2022,92.53,"Director of Housing, Neighbourhood and Building Services"
Type of Retail Store,Grocery Stores/Supermarkets,Lidl Gb Portsmouth,Supplies and Services related expenditure,04/07/2022,13.53,Director of Children's Services and Education
Business To Business Facility/,Industrial Supplies - Def,Arco Limited (Ahpp),Supplies and Services related expenditure,04/07/2022,3.36,Director of Regeneration
Type of Retail Store,Grocery Stores/Supermarkets,Tesco Stores 3123,Supplies and Services related expenditure,04/07/2022,2.7,Director of Adult Care
Facilities/Repair Supplies,Lumber/Build. Supply Stores,Screwfix Dir. Ltd,Supplies and Services related expenditure,04/07/2022,149.99,Director of Regeneration
Government Service,Govt Serv - Default,Hampshire County Counc,Supplies and Services related expenditure,04/07/2022,295.57,"Director of Culture, Leisure & Regulatory Services"
Facilities/Repair Services,Gen Contractors Residentl/Coml,Broxap Ltd,Premises related expenditure,04/07/2022,1352,"Director of Culture, Leisure & Regulatory Services"
Hotels And Motels,Hotel Ibis,Hotel Ibis,Agency and Third Party Payments related expenditure,04/07/2022,2657.2,"Director of Housing, Neighbourhood and Building Services"
Type of Retail Store,Grocery Stores/Supermarkets,Tesco Store 3055,Supplies and Services related expenditure,04/07/2022,41.27,Director of Children's Services and Education
Type of Retail Store,Grocery Stores/Supermarkets,Tesco Store 3055,Supplies and Services related expenditure,04/07/2022,14.75,Director of Children's Services and Education
Type of Retail Store,Grocery Stores/Supermarkets,Tesco Store 3055,Supplies and Services related expenditure,04/07/2022,19.26,Director of Children's Services and Education
Business To Business Facility/,Industrial Supplies - Def,Arco Limited (Sap),Supplies and Services related expenditure,04/07/2022,58.68,"Director of Housing, Neighbourhood and Building Services"
Other Supplies,Misc Speciality Retail,W&p / Medirite,Premises related expenditure,04/07/2022,155.58,"Director of Housing, Neighbourhood and Building Services"
Business To Business Other Sup,Uniforms & Commercial Clothing,Alexandra Website,Supplies and Services related expenditure,04/07/2022,171.82,"Director of Housing, Neighbourhood and Building Services"
Type of Retail Store,Electronics Sales,Currys Online,Supplies and Services related expenditure,04/07/2022,308.32,"Director of Housing, Neighbourhood and Building Services"
Caterers Food,Caterers,Booker Limited Portsmouth,Supplies and Services related expenditure,04/07/2022,29.78,Director of Children's Services and Education
Caterers Food,Caterers,Booker Limited Portsmouth,Supplies and Services related expenditure,04/07/2022,106.58,Director of Children's Services and Education
Business To Business Eqpt/Furn,Book Stores,The Hayling Island Bkshp,Supplies and Services related expenditure,04/07/2022,54,"Director of Culture, Leisure & Regulatory Services"
Business To Business Services,Typesetting/Plate Making Etc,The Reading Agency,Supplies and Services related expenditure,04/07/2022,135,"Director of Culture, Leisure & Regulatory Services"
Government Service,Schools - Default,Hirstwood Training,Supplies and Services related expenditure,04/07/2022,80,Director of Children's Services and Education
Type of Retail Store,Grocery Stores/Supermarkets,Asda Stores,Supplies and Services related expenditure,04/07/2022,18.4,"Director of Housing, Neighbourhood and Building Services"
Government Service,Schools - Default,Right Online Course Co,Supplies and Services related expenditure,04/07/2022,238.7,"Director of Housing, Neighbourhood and Building Services"
Caterers Food,Caterers,Booker Limited Portsmouth,Supplies and Services related expenditure,04/07/2022,251.06,Director of Children's Services and Education
Business Services,Business Services - Default,Zebra Waste,Premises related expenditure,04/07/2022,252,Director of Adult Care
Type of Retail Store,Grocery Stores/Supermarkets,Asda Groceries Online,Supplies and Services related expenditure,04/07/2022,52.7,Director of Children's Services and Education
Business To Business Eqpt/Furn,Book Stores,Waterstones,Supplies and Services related expenditure,04/07/2022,10.36,Director of Children's Services and Education
Type of Retail Store,Grocery Stores/Supermarkets,Tesco Gift Card,Supplies and Services related expenditure,04/07/2022,25,Director of Children's Services and Education
Automobile Services & Supplies,Service Stations,Shell Victory,Transport related expenditure,04/07/2022,57.75,Director of Children's Services and Education
Facilities Maintenance,Specialty Cleaning/Polishing,Comax UK Limited,Premises related expenditure,04/07/2022,-72,Director of Children's Services and Education
Other Supplies,Misc Speciality Retail,Amznmktplace,Supplies and Services related expenditure,04/07/2022,12.49,Director of Children's Services and Education
Other Supplies,Misc Speciality Retail,Amznmktplace,Supplies and Services related expenditure,04/07/2022,16.37,Director of Children's Services and Education
Other Supplies,Misc Speciality Retail,Amznmktplace,Supplies and Services related expenditure,04/07/2022,13.04,Director of Children's Services and Education
Type of Retail Store,Grocery Stores/Supermarkets,Southern Co-Op 0014,Supplies and Services related expenditure,04/07/2022,8.9,Director of Children's Services and Education
Type of Retail Store,Grocery Stores/Supermarkets,Wm Morrisons Store,Supplies and Services related expenditure,04/07/2022,18.2,Director of Children's Services and Education
Type of Retail Store,Grocery Stores/Supermarkets,Lidl Gb Portsmouth,Supplies and Services related expenditure,04/07/2022,6.96,Director of Children's Services and Education
Type of Retail Store,Grocery Stores/Supermarkets,Asda Groceries Online,Supplies and Services related expenditure,04/07/2022,54.83,Director of Children's Services and Education
Transportation Conveyor,Passenger Railways,Trainline.Com,Transport related expenditure,04/07/2022,88.4,Director of Children's Services and Education
Business To Business Eqpt/Furn,Stationery/Office Supplies,Www.Banneruk.Com,Supplies and Services related expenditure,04/07/2022,20.19,"Director of Culture, Leisure & Regulatory Services"
Type of Retail Store,Electronics Sales,Directnine,Supplies and Services related expenditure,04/07/2022,161.95,"Director of Housing, Neighbourhood and Building Services"
Transportation Conveyor,Bus Lines/Charter/Tour,First Hampshire,Transport related expenditure,04/07/2022,3.5,Director of Children's Services and Education
Type of Retail Store,Grocery Stores/Supermarkets,Tesco Stores 4579,Supplies and Services related expenditure,04/07/2022,3.75,Director of Children's Services and Education
Type of Retail Store,Grocery Stores/Supermarkets,Tesco Stores 4579,Supplies and Services related expenditure,04/07/2022,4,Director of Children's Services and Education
Eating And Drinking Places,Fast Food Restaurants,McDonalds,Agency and Third Party Payments related expenditure,04/07/2022,2.77,Director of Children's Services and Education
Type of Retail Store,Grocery Stores/Supermarkets,Tesco Stores 6002,Supplies and Services related expenditure,04/07/2022,14.09,Director of Children's Services and Education
Type of Retail Store,Grocery Stores/Supermarkets,Sainsburys S/mkt,Supplies and Services related expenditure,04/07/2022,22.5,Director of Children's Services and Education
Type of Retail Store,Grocery Stores/Supermarkets,Tesco Stores 6002,Supplies and Services related expenditure,04/07/2022,35.99,Director of Children's Services and Education
Business To Business Eqpt/Furn,Stationery/Office Supplies,Yorkshire Purchasing O,Supplies and Services related expenditure,04/07/2022,23.7,Director of Children's Services and Education
Type of Retail Store,Grocery Stores/Supermarkets,Asda Groceries Online,Supplies and Services related expenditure,04/07/2022,39.83,Director of Children's Services and Education
Type of Retail Store,Grocery Stores/Supermarkets,Asda Groceries Online,Supplies and Services related expenditure,04/07/2022,46.2,Director of Children's Services and Education
Business To Business Eqpt/Furn,Computer Software Stores,Oota/Syard* Out Of The,Supplies and Services related expenditure,04/07/2022,28.7,Director of Children's Services and Education
Business To Business Eqpt/Furn,Computer Software Stores,Oota/Syard* Out Of The,Supplies and Services related expenditure,04/07/2022,15,Director of Children's Services and Education
Type of Retail Store,Grocery Stores/Supermarkets,Asda Groceries Online,Supplies and Services related expenditure,04/07/2022,58.5,Director of Children's Services and Education
Business To Business Eqpt/Furn,Stationery/Office Supplies,Www.Banneruk.Com,Supplies and Services related expenditure,04/07/2022,42.24,Director of Adult Care
Other Supplies,Wholesale Clubs,The Fruit Basket,Supplies and Services related expenditure,04/07/2022,73.97,Director of Adult Care
Other Supplies,Misc Speciality Retail,Dennis Edwards For Foo,Supplies and Services related expenditure,04/07/2022,276.78,Director of Adult Care
Other Supplies,Misc Speciality Retail,Dennis Edwards For Foo,Supplies and Services related expenditure,04/07/2022,3.97,Director of Adult Care
Equipment And Furniture,Household Appliance Stores,Tlc Direct.Co.Uk,Supplies and Services related expenditure,04/07/2022,74.6,"Director of Housing, Neighbourhood and Building Services"
Type of Retail Store,Drug Stores & Pharmacies,Superdrug Stores Plc,Premises related expenditure,04/07/2022,15.55,Director of Children's Services and Education
Hotels And Motels,Premier Travel Inns,Premier Inn44013150,Supplies and Services related expenditure,04/07/2022,75.5,Director of Adult Care
Hotels And Motels,Travelodge,Travelodge Gb0000,Agency and Third Party Payments related expenditure,05/07/2022,1218.8,"Director of Housing, Neighbourhood and Building Services"
Other Supplies,Misc Speciality Retail,Www.Systemq.Com,Supplies and Services related expenditure,05/07/2022,158,"Director of Housing, Neighbourhood and Building Services"
Transportation Conveyor,Local Commuter Transport,Hovertravel Ltd- Ecomm,Agency and Third Party Payments related expenditure,05/07/2022,168,Director of Children's Services and Education
Transportation Conveyor,Passenger Railways,Sw Railway App,Transport related expenditure,05/07/2022,18.4,Director of Finance & Resources
Type of Retail Store,Grocery Stores/Supermarkets,Tesco Stores 2322,Supplies and Services related expenditure,05/07/2022,1.17,Director of Children's Services and Education
Other Supplies,Discount Stores,Poundland Ltd 1477,Supplies and Services related expenditure,05/07/2022,11.67,Director of Children's Services and Education
Transportation Conveyor,"Parking Lots, Meters, Garages",Fareham Borough Counci,Supplies and Services related expenditure,05/07/2022,4,Director of Children's Services and Education
Transportation Conveyor,"Parking Lots, Meters, Garages",Fareham Borough Counci,Supplies and Services related expenditure,05/07/2022,4,Director of Children's Services and Education
Government Service,Schools - Default,Ncs*citb Exam,Employees related expenditure,05/07/2022,22.5,"Director of Housing, Neighbourhood and Building Services"
Auto/Vehicle Expenses,Car Washes,Hilsea Hand Carwash,Transport related expenditure,05/07/2022,10,Director of Regeneration
Business To Business Eqpt/Furn,Stationery/Office Supplies,Www.Banneruk.Com,Supplies and Services related expenditure,05/07/2022,65.44,"Director of Housing, Neighbourhood and Building Services"
Type of Retail Store,Artist/Craft Shops,Baker Ross,Supplies and Services related expenditure,05/07/2022,39.96,Director of Children's Services and Education
Facilities/Repair Supplies,Swimming Pools/Sales/Serv,Www.Lymingtonseawaterb,Supplies and Services related expenditure,05/07/2022,245,"Director of Housing, Neighbourhood and Building Services"
Other Supplies,Misc Speciality Retail,Amznmktplace,Capital related expenditure,05/07/2022,14.03,Capital - Housing RA
Other Supplies,Misc Speciality Retail,Amznmktplace,Capital related expenditure,05/07/2022,13.28,Capital - Leader
Business Services,Business Services - Default,Intonation Ltd,Supplies and Services related expenditure,05/07/2022,50,Director of Regeneration
Business To Business Eqpt/Furn,Stationery/Office Supplies,Www.Banneruk.Com,Supplies and Services related expenditure,05/07/2022,81.7,Director of Regeneration
Facilities/Repair Supplies,Lawn/Garden Supply/Nursery,Paypal,Premises related expenditure,05/07/2022,58.3,"Director of Housing, Neighbourhood and Building Services"
Other Supplies,Misc Speciality Retail,W&p / Medirite,Premises related expenditure,05/07/2022,69.18,"Director of Housing, Neighbourhood and Building Services"
Equipment And Furniture,Household Appliance Stores,Ao Retail Limited,Supplies and Services related expenditure,05/07/2022,236.67,Director of Children's Services and Education
Government Service,Govt Serv - Default,2maa031489153 Td E-Pmt,Supplies and Services related expenditure,05/07/2022,75,Director of Children's Services and Education
Transportation Conveyor,"Parking Lots, Meters, Garages",East Hampshire Distric,Supplies and Services related expenditure,05/07/2022,5.83,Director of Portsmouth International Port
Transportation Conveyor,Passenger Railways,Swrailway Tck Off,Supplies and Services related expenditure,05/07/2022,62.5,Director of Portsmouth International Port
Type of Retail Store,Pet Stores/Food & Supply,Pets At Home Ltd,Supplies and Services related expenditure,05/07/2022,56.06,Director of Children's Services and Education
Other Supplies,Misc Speciality Retail,Amznmktplace,Supplies and Services related expenditure,05/07/2022,6.83,Director of Children's Services and Education
Other Supplies,Misc Speciality Retail,Amznmktplace,Supplies and Services related expenditure,05/07/2022,55.47,Director of Children's Services and Education
Digital Goods,"Digital Goods - Media, Books, Movies, Music",Spotify P1c638608e,Supplies and Services related expenditure,05/07/2022,14.16,Director of Children's Services and Education
Government Service,Govt Serv - Default,Portsmouth City Co,Transport related expenditure,05/07/2022,63.33,Director of Adult Care
Business Expenses/Services,Stationery Stores,Cmkustom Clothing,Supplies and Services related expenditure,05/07/2022,657,Director of Children's Services and Education
Facilities/Repair Supplies,Automotive Parts Stores,National Windscreens,Transport related expenditure,05/07/2022,35,Director of Adult Care
Transportation Conveyor,Bus Lines/Charter/Tour,First Hampshire,Transport related expenditure,05/07/2022,3.5,Director of Children's Services and Education
Facilities/Repair Supplies,Home Supply Warehouse Stores,B & Q 1260,Agency and Third Party Payments related expenditure,05/07/2022,6,Director of Children's Services and Education
Type of Retail Store,Grocery Stores/Supermarkets,Tesco Stores 4579,Supplies and Services related expenditure,05/07/2022,69,Director of Children's Services and Education
Type of Retail Store,Grocery Stores/Supermarkets,Tesco Stores 4579,Supplies and Services related expenditure,05/07/2022,13.83,Director of Children's Services and Education
Type of Retail Store,Grocery Stores/Supermarkets,Tesco Stores 4579,Supplies and Services related expenditure,05/07/2022,79,Director of Children's Services and Education
Business To Business Services,Misc Publishing & Printing,Www.Solopress.Com,Supplies and Services related expenditure,05/07/2022,85.99,"Director of Culture, Leisure & Regulatory Services"
Business To Business Services,Misc Publishing & Printing,Www.Solopress.Com,Supplies and Services related expenditure,05/07/2022,118.9,"Capital - Culture, Leisure & Economic Development"
Business To Business Services,Misc Publishing & Printing,Www.Solopress.Com,Supplies and Services related expenditure,05/07/2022,478.36,Director of Regeneration
Transportation Conveyor,Passenger Railways,Thetrainline.Com,Transport related expenditure,05/07/2022,11.19,Director of Children's Services and Education
Hotels And Motels,Lodging/Hotels/Motels/Resorts,Hotel At Booking.Com,Supplies and Services related expenditure,05/07/2022,51.53,Director of Children's Services and Education
Type of Retail Store,Grocery Stores/Supermarkets,Asda Stores,Supplies and Services related expenditure,05/07/2022,25,Director of Children's Services and Education
Type of Retail Store,Grocery Stores/Supermarkets,Wm Morrisons Store,Supplies and Services related expenditure,05/07/2022,4.57,Director of Children's Services and Education
Type of Retail Store,Grocery Stores/Supermarkets,Wm Morrisons Store,Supplies and Services related expenditure,05/07/2022,29.13,Director of Children's Services and Education
Type of Retail Store,Grocery Stores/Supermarkets,Tesco Store 3055,Premises related expenditure,05/07/2022,27.92,Director of Children's Services and Education
Type of Retail Store,Grocery Stores/Supermarkets,Tesco Store 3055,Supplies and Services related expenditure,05/07/2022,51.19,Director of Children's Services and Education
Business Expenses/Services,Stationery Stores,Mil/superstickers-,Supplies and Services related expenditure,05/07/2022,29.37,Director of Children's Services and Education
Miscellaneous,Charitable/Soc Service Orgs,Geographical Assoc,Supplies and Services related expenditure,05/07/2022,54,Director of Children's Services and Education
Miscellaneous,Misc Personal Serv - Def,Iz *southsea Model,Supplies and Services related expenditure,05/07/2022,128,Director of Children's Services and Education
Other Supplies,Misc Speciality Retail,Amznmktplace,Supplies and Services related expenditure,05/07/2022,6.28,Director of Children's Services and Education
Transportation Conveyor,Passenger Railways,Thetrainline.Com,Transport related expenditure,05/07/2022,170.08,Director of Children's Services and Education
Other Supplies,Misc Speciality Retail,Amznbusiness,Supplies and Services related expenditure,05/07/2022,12.49,Director of Children's Services and Education
Type of Retail Store,Grocery Stores/Supermarkets,Tesco Stores 6679,Supplies and Services related expenditure,05/07/2022,37.3,Director of Adult Care
Government Service,Govt Serv - Default,Portsmouth Water T/t,Supplies and Services related expenditure,05/07/2022,11.84,Director of Children's Services and Education
Other Supplies,Misc Speciality Retail,Amz*warm Spring Sun,Supplies and Services related expenditure,05/07/2022,-134.99,Director of Regeneration
Government Service,Govt Serv - Default,Havant Borough Council,Supplies and Services related expenditure,05/07/2022,95,"Director of Housing, Neighbourhood and Building Services"
Miscellaneous,Continuity/Subscription Mercht,Vmo,Supplies and Services related expenditure,05/07/2022,51.75,Director of Corporate Services
Type of Retail Store,Misc Food Stores - Default,Spar,Supplies and Services related expenditure,05/07/2022,3.28,Director of Children's Services and Education
Transportation Conveyor,Bus Lines/Charter/Tour,First Bus,Supplies and Services related expenditure,05/07/2022,60,Director of Children's Services and Education
Type of Retail Store,Grocery Stores/Supermarkets,Asda Stores,Supplies and Services related expenditure,05/07/2022,6.75,Director of Children's Services and Education
Facilities/Repair Supplies,Lumber/Build. Supply Stores,Www.Screwfix.Com,Premises related expenditure,05/07/2022,65.93,Director of Portsmouth International Port
Type of Retail Store,Grocery Stores/Supermarkets,Tesco Stores 4579,Supplies and Services related expenditure,05/07/2022,30.32,Director of Adult Care
Eating And Drinking Places,Eating Places/Restaurants,Ztl*sweetcakes,Supplies and Services related expenditure,05/07/2022,4.58,Director of Children's Services and Education
Type of Retail Store,Grocery Stores/Supermarkets,Tesco Stores 6002,Supplies and Services related expenditure,05/07/2022,35.25,Director of Children's Services and Education
Type of Retail Store,Sporting Goods Stores,Sportsdirect 363,Supplies and Services related expenditure,05/07/2022,66.5,Director of Children's Services and Education
Facilities/Repair Supplies,Lumber/Build. Supply Stores,B&q Ltd,Premises related expenditure,05/07/2022,6.3,Director of Children's Services and Education
Other Supplies,Discount Stores,Argos Ltd,Supplies and Services related expenditure,05/07/2022,11.95,Director of Children's Services and Education
Miscellaneous,Other Direct Marketers,Findel Education,Supplies and Services related expenditure,05/07/2022,15.44,Director of Children's Services and Education
Government Service,Schools - Default,Field Studies Council,Supplies and Services related expenditure,05/07/2022,53.75,Director of Children's Services and Education
Type of Retail Store,Hobby/Toy/Game Stores,The Happy Puzzle Compa,Supplies and Services related expenditure,05/07/2022,46.64,Director of Children's Services and Education
Business Expenses/Services,Stationery Stores,Www.Tts-Groups.Co.Uk,Supplies and Services related expenditure,05/07/2022,93.94,Director of Children's Services and Education
Business To Business Facility/,Industrial Supplies - Def,Arco Limited (Ahpp),Supplies and Services related expenditure,05/07/2022,24.76,Director of Portsmouth International Port
Personal Service Provider,Real Estate Agents And Managers,Http://Www.Orchardapartm,Supplies and Services related expenditure,05/07/2022,409,Director of Children's Services and Education
Other Supplies,Discount Stores,Argos Ltd,Supplies and Services related expenditure,05/07/2022,26.95,Director of Children's Services and Education
Business To Business Facility/,Industrial Supplies - Def,Fw3 Group,Supplies and Services related expenditure,05/07/2022,120.82,Director of Children's Services and Education
Business To Business Eqpt/Furn,Stationery/Office Supplies,Www.Banneruk.Com,Supplies and Services related expenditure,05/07/2022,0.78,"Director of Culture, Leisure & Regulatory Services"
Business To Business Eqpt/Furn,Stationery/Office Supplies,Www.Banneruk.Com,Supplies and Services related expenditure,05/07/2022,16.85,"Director of Culture, Leisure & Regulatory Services"
Business To Business Eqpt/Furn,Stationery/Office Supplies,Www.Banneruk.Com,Supplies and Services related expenditure,05/07/2022,17.63,"Director of Culture, Leisure & Regulatory Services"
Business To Business Eqpt/Furn,Stationery/Office Supplies,Www.Banneruk.Com,Supplies and Services related expenditure,05/07/2022,17.63,"Director of Culture, Leisure & Regulatory Services"
Business To Business Eqpt/Furn,Stationery/Office Supplies,Www.Banneruk.Com,Supplies and Services related expenditure,05/07/2022,17.63,"Director of Culture, Leisure & Regulatory Services"
Business To Business Eqpt/Furn,Stationery/Office Supplies,Www.Banneruk.Com,Supplies and Services related expenditure,05/07/2022,17.63,"Director of Culture, Leisure & Regulatory Services"
Business To Business Eqpt/Furn,Stationery/Office Supplies,Www.Banneruk.Com,Supplies and Services related expenditure,05/07/2022,17.63,"Director of Culture, Leisure & Regulatory Services"
Business To Business Eqpt/Furn,Stationery/Office Supplies,Www.Banneruk.Com,Supplies and Services related expenditure,05/07/2022,17.63,"Director of Culture, Leisure & Regulatory Services"
Business To Business Eqpt/Furn,Stationery/Office Supplies,Www.Banneruk.Com,Supplies and Services related expenditure,05/07/2022,17.63,"Director of Culture, Leisure & Regulatory Services"
Business To Business Eqpt/Furn,Stationery/Office Supplies,Www.Banneruk.Com,Supplies and Services related expenditure,05/07/2022,17.63,"Director of Culture, Leisure & Regulatory Services"
Business To Business Eqpt/Furn,Stationery/Office Supplies,Www.Banneruk.Com,Supplies and Services related expenditure,05/07/2022,17.63,"Director of Culture, Leisure & Regulatory Services"
Business To Business Facility/,Industrial Supplies - Def,Arco Limited (Sap),Supplies and Services related expenditure,05/07/2022,48.76,"Director of Culture, Leisure & Regulatory Services"
Type of Retail Store,Sporting Goods Stores,Www.Cmwequipment.,Supplies and Services related expenditure,05/07/2022,106.85,"Director of Culture, Leisure & Regulatory Services"
Type of Retail Store,Grocery Stores/Supermarkets,Tesco Stores 5475,Supplies and Services related expenditure,05/07/2022,11.25,Director of Children's Services and Education
Business To Business Eqpt/Furn,Computer Software Stores,Sp Chevron Clothing,Supplies and Services related expenditure,05/07/2022,66.62,Director of Children's Services and Education
Other Supplies,Misc Speciality Retail,Amznmktplace,Supplies and Services related expenditure,05/07/2022,6.07,"Director of Housing, Neighbourhood and Building Services"
Other Supplies,Misc Speciality Retail,Amznmktplace,Supplies and Services related expenditure,05/07/2022,6.51,"Director of Housing, Neighbourhood and Building Services"
Other Supplies,Misc Speciality Retail,Amznmktplace,Supplies and Services related expenditure,05/07/2022,9.17,"Director of Housing, Neighbourhood and Building Services"
Other Supplies,Misc Speciality Retail,Amznmktplace,Supplies and Services related expenditure,05/07/2022,9.33,"Director of Housing, Neighbourhood and Building Services"
Other Supplies,Misc Speciality Retail,Amznmktplace,Supplies and Services related expenditure,05/07/2022,19.98,"Director of Housing, Neighbourhood and Building Services"
Other Supplies,Misc Speciality Retail,Amznmktplace,Supplies and Services related expenditure,05/07/2022,120,"Director of Housing, Neighbourhood and Building Services"
Transportation Conveyor,Passenger Railways,Sw Railway App,Transport related expenditure,05/07/2022,277,Director of Children's Services and Education
Type of Retail Store,Grocery Stores/Supermarkets,Sainsburys S/mkts,Supplies and Services related expenditure,05/07/2022,3.3,Director of Children's Services and Education
Type of Retail Store,Sporting Goods Stores,Decathlon UK Limited,Supplies and Services related expenditure,05/07/2022,33.32,Director of Children's Services and Education
Type of Retail Store,Electronics Sales,Currys Online,Supplies and Services related expenditure,05/07/2022,136.67,"Director of Housing, Neighbourhood and Building Services"
Miscellaneous,Other Direct Marketers,Amazon.Co.Uk,Supplies and Services related expenditure,05/07/2022,30,Director of Children's Services and Education
Miscellaneous,Other Direct Marketers,Amazon.Co.Uk,Supplies and Services related expenditure,05/07/2022,30,Director of Children's Services and Education
Miscellaneous,Other Direct Marketers,Amazon.Co.Uk,Supplies and Services related expenditure,05/07/2022,30,Director of Children's Services and Education
Miscellaneous,Other Direct Marketers,Amazon.Co.Uk,Supplies and Services related expenditure,05/07/2022,30,Director of Children's Services and Education
Auto/Vehicle Expenses,Automotive Tire Stores,Hordean Tyres,Supplies and Services related expenditure,05/07/2022,92.5,"Director of Culture, Leisure & Regulatory Services"
Auto/Vehicle Expenses,Automotive Tire Stores,Hordean Tyres,Supplies and Services related expenditure,05/07/2022,102.5,"Director of Culture, Leisure & Regulatory Services"
Other Supplies,Misc Speciality Retail,Amznmktplace,Premises related expenditure,05/07/2022,18.35,Director of Children's Services and Education
Other Supplies,Misc Speciality Retail,Amznmktplace,Supplies and Services related expenditure,05/07/2022,19.59,Director of Children's Services and Education
Other Supplies,Misc Speciality Retail,Amznmktplace,Transport related expenditure,05/07/2022,34.92,Director of Children's Services and Education
Eating And Drinking Places,Eating Places/Restaurants,Greggs Plc,Supplies and Services related expenditure,05/07/2022,2.5,"Director of Housing, Neighbourhood and Building Services"
Type of Retail Store,Grocery Stores/Supermarkets,Sainsburys S/mkts,Supplies and Services related expenditure,05/07/2022,3.5,"Director of Housing, Neighbourhood and Building Services"
Other Supplies,Misc Speciality Retail,W&p / Medirite,Supplies and Services related expenditure,05/07/2022,59.12,"Director of Housing, Neighbourhood and Building Services"
Other Supplies,Misc Speciality Retail,W&p / Medirite,Premises related expenditure,05/07/2022,180.84,"Director of Housing, Neighbourhood and Building Services"
Other Supplies,Misc Gen Merchandise - Def,Sticker Stocker,Supplies and Services related expenditure,05/07/2022,11.83,Director of Children's Services and Education
Transportation Conveyor,Passenger Railways,Www.Avantiwestcoast.Co,Transport related expenditure,05/07/2022,131.2,Director of Children's Services and Education
Transportation Conveyor,Taxicabs/Limousines,Ccs*aqua Cars Ltd,Supplies and Services related expenditure,05/07/2022,4.2,"Director of Housing, Neighbourhood and Building Services"
Type of Retail Store,Grocery Stores/Supermarkets,Iceland,Supplies and Services related expenditure,05/07/2022,27.32,"Director of Housing, Neighbourhood and Building Services"
Type of Retail Store,Grocery Stores/Supermarkets,Asda Stores,Supplies and Services related expenditure,05/07/2022,58.46,"Director of Housing, Neighbourhood and Building Services"
Business To Business Eqpt/Furn,Computer Software Stores,Constructioncert,Supplies and Services related expenditure,05/07/2022,37.5,Director of Regeneration
Business To Business Services,Misc Publishing & Printing,Jpimedia.Co.Uk,Supplies and Services related expenditure,05/07/2022,142,Director of Corporate Services
Facilities/Repair Supplies,Hardware Stores,Www.Truetraders.Co.Uk,Premises related expenditure,05/07/2022,166.66,Director of Children's Services and Education
Personal Service Provider,Professional Services - Def,Paypal,Supplies and Services related expenditure,05/07/2022,142.5,Director of Children's Services and Education
Facilities/Repair Supplies,Lumber/Build. Supply Stores,Buildbase - Portsmouth,Premises related expenditure,05/07/2022,133,"Director of Housing, Neighbourhood and Building Services"
Other Supplies,Misc Speciality Retail,Amznmktplace,Supplies and Services related expenditure,05/07/2022,58.32,"Director of Housing, Neighbourhood and Building Services"
Miscellaneous,Other Direct Marketers,Amazon.Co.Uk,Supplies and Services related expenditure,05/07/2022,7.69,Director of Public Health
Business To Business Eqpt/Furn,Stationery/Office Supplies,Www.Banneruk.Com,Supplies and Services related expenditure,05/07/2022,20.32,Director of Public Health
Transportation Conveyor,Passenger Railways,Thetrainline.Com,Transport related expenditure,05/07/2022,-56.2,Solent LEP
Caterers Food,Caterers,Booker Limited Portsmouth,Supplies and Services related expenditure,05/07/2022,48.07,Director of Children's Services and Education
Caterers Food,Caterers,Booker Limited Portsmouth,Supplies and Services related expenditure,05/07/2022,31.58,Director of Children's Services and Education
Business To Business Facility/,Industrial Supplies - Def,Arco Limited (Sap),Supplies and Services related expenditure,05/07/2022,17.8,"Director of Housing, Neighbourhood and Building Services"
Business To Business Facility/,Electrical Parts/Equipment,Edmundson Electrical,Supplies and Services related expenditure,05/07/2022,307.12,"Director of Housing, Neighbourhood and Building Services"
Other Supplies,Misc Speciality Retail,Amznmktplace,Supplies and Services related expenditure,05/07/2022,112.48,Director of Children's Services and Education
Other Supplies,Misc Speciality Retail,Amznbusiness,Supplies and Services related expenditure,05/07/2022,15.02,Director of Children's Services and Education
Other Supplies,Misc Speciality Retail,Amznbusiness,Supplies and Services related expenditure,05/07/2022,35.56,Director of Children's Services and Education
Business To Business Eqpt/Furn,Book Stores,Sp Books2door,Supplies and Services related expenditure,05/07/2022,479.85,Director of Children's Services and Education
Other Supplies,Misc Speciality Retail,Max Spielmann Ltd,Supplies and Services related expenditure,05/07/2022,9.99,"Director of Housing, Neighbourhood and Building Services"
Government Service,Business/Secretarial School,Paypal,Supplies and Services related expenditure,05/07/2022,53,Director of Children's Services and Education
Government Service,Business/Secretarial School,Paypal,Supplies and Services related expenditure,05/07/2022,5,Director of Children's Services and Education
Government Service,Schools - Default,Mental Health First Aid E,Employees related expenditure,05/07/2022,550,Director of Corporate Services
Freight/Courier/Warehouse Svcs,Motor Freight Carriers,Hermes Parcelnet Ltd T/A,Supplies and Services related expenditure,05/07/2022,6.48,Director of Portsmouth International Port
Business To Business Services,Misc Publishing & Printing,Www.Solopress.Com,Supplies and Services related expenditure,05/07/2022,44.75,Director of Portsmouth International Port
Facilities/Repair Supplies,Lumber/Build. Supply Stores,Www.Screwfix.Com,Premises related expenditure,05/07/2022,33.04,"Director of Culture, Leisure & Regulatory Services"
Business To Business Facility/,Hardware Equipment/Supplies,Cns Power Tools,Premises related expenditure,05/07/2022,64.58,"Director of Culture, Leisure & Regulatory Services"
Transportation Conveyor,Bus Lines/Charter/Tour,First Bus,Supplies and Services related expenditure,05/07/2022,26.5,Director of Children's Services and Education
Other Supplies,Misc Speciality Retail,Amznmktplace,Supplies and Services related expenditure,05/07/2022,3.66,Director of Children's Services and Education
Other Supplies,Discount Stores,Poundwise Milton,Supplies and Services related expenditure,05/07/2022,6.23,Director of Children's Services and Education
Other Supplies,Misc Speciality Retail,Amznmktplace,Supplies and Services related expenditure,05/07/2022,6.66,Director of Children's Services and Education
Other Supplies,Misc Speciality Retail,Amznmktplace,Supplies and Services related expenditure,05/07/2022,7.46,Director of Children's Services and Education
Other Supplies,Misc Speciality Retail,Amznmktplace,Supplies and Services related expenditure,05/07/2022,12.49,Director of Children's Services and Education
Other Supplies,Misc Speciality Retail,Amznmktplace,Supplies and Services related expenditure,05/07/2022,12.83,Director of Children's Services and Education
Other Supplies,Misc Speciality Retail,Amznmktplace,Supplies and Services related expenditure,05/07/2022,16.64,Director of Children's Services and Education
Other Supplies,Misc Speciality Retail,Amznmktplace,Supplies and Services related expenditure,05/07/2022,16.64,Director of Children's Services and Education
Other Supplies,Misc Speciality Retail,Amznmktplace,Supplies and Services related expenditure,05/07/2022,16.66,Director of Children's Services and Education
Business Expenses/Services,Postage Stamps,Post Office Counter,Supplies and Services related expenditure,05/07/2022,26.08,Director of Children's Services and Education
Type of Retail Store,Misc Food Stores - Default,Welcome B/waitrose,Supplies and Services related expenditure,05/07/2022,3.75,Director of Children's Services and Education
Auto/Vehicle Expenses,Toll And Bridge Fees,M6 Toll,Supplies and Services related expenditure,05/07/2022,7.1,Director of Children's Services and Education
Type of Retail Store,Misc Food Stores - Default,Welcome B/starbucks,Supplies and Services related expenditure,05/07/2022,8.65,Director of Children's Services and Education
Type of Retail Store,Music Stores/Pianos,Www.Thomann.De,Supplies and Services related expenditure,05/07/2022,54.58,Director of Children's Services and Education
Business To Business Services,Misc Publishing & Printing,Asher Design & Print Ltd,Supplies and Services related expenditure,05/07/2022,12.5,Director of Children's Services and Education
Type of Retail Store,Grocery Stores/Supermarkets,Tesco Store 3055,Supplies and Services related expenditure,05/07/2022,7.62,Director of Children's Services and Education
Business To Business Facility/,Hardware Equipment/Supplies,Pompey Hardware,Premises related expenditure,05/07/2022,13.5,Director of Children's Services and Education
Business To Business Facility/,Hardware Equipment/Supplies,Pompey Hardware,Supplies and Services related expenditure,05/07/2022,15.2,Director of Children's Services and Education
Business To Business Facility/,Hardware Equipment/Supplies,Croma Locksmiths & Sec,Premises related expenditure,05/07/2022,8.33,Director of Children's Services and Education
Other Supplies,Misc Speciality Retail,Amznmktplace,Supplies and Services related expenditure,05/07/2022,11.24,Director of Regeneration
Other Supplies,Misc Speciality Retail,Amznmktplace,Supplies and Services related expenditure,05/07/2022,16.66,Director of Regeneration
Type of Retail Store,Grocery Stores/Supermarkets,Tesco Stores 4579,Premises related expenditure,05/07/2022,2.92,Director of Children's Services and Education
Type of Retail Store,Grocery Stores/Supermarkets,Tesco Stores 4579,Supplies and Services related expenditure,05/07/2022,0.45,Director of Children's Services and Education
Government Service,Correspondence Schools,White Rose Maths,Supplies and Services related expenditure,05/07/2022,150,Director of Children's Services and Education
Other Supplies,Misc Speciality Retail,Amz*amazon Business Uk,Supplies and Services related expenditure,05/07/2022,-3.2,Director of Children's Services and Education
Other Supplies,Misc Speciality Retail,Amz*amazon Business Uk,Supplies and Services related expenditure,05/07/2022,-3.2,Director of Children's Services and Education
Other Supplies,Misc Speciality Retail,Amz*amazon Business Uk,Supplies and Services related expenditure,05/07/2022,-3.2,Director of Children's Services and Education
Other Supplies,Misc Speciality Retail,Amz*amazon Business Uk,Supplies and Services related expenditure,05/07/2022,-3.2,Director of Children's Services and Education
Type of Retail Store,Freezer/Meat Lockers,Bransbury Park Butchers,Supplies and Services related expenditure,05/07/2022,138.22,Director of Adult Care
Other Supplies,Misc Speciality Retail,Amznmktplace,Premises related expenditure,06/07/2022,7.46,Director of Adult Care
Other Supplies,Misc Speciality Retail,Amz*amazon Business Uk,Supplies and Services related expenditure,06/07/2022,-3.2,Director of Children's Services and Education
Other Supplies,Misc Speciality Retail,Amz*amazon Business Uk,Supplies and Services related expenditure,06/07/2022,-3.2,Director of Children's Services and Education
Other Supplies,Misc Speciality Retail,Amz*amazon Business Uk,Supplies and Services related expenditure,06/07/2022,-3.2,Director of Children's Services and Education
Other Supplies,Misc Speciality Retail,Amz*amazon Business Uk,Supplies and Services related expenditure,06/07/2022,-3.2,Director of Children's Services and Education
Equipment And Furniture,Equip/Furn Rent/Lease Serv,Power Tool Hire/Sa,Supplies and Services related expenditure,05/07/2022,200,"Director of Housing, Neighbourhood and Building Services"
Business To Business Eqpt/Furn,Stationery/Office Supplies,Staples,Supplies and Services related expenditure,05/07/2022,38.32,Director of Children's Services and Education
Hotels And Motels,Premier Travel Inns,Premier Inn 44537650,Transport related expenditure,05/07/2022,112.49,Director of Children's Services and Education
Eating And Drinking Places,Eating Places/Restaurants,Turtle Bay,Supplies and Services related expenditure,05/07/2022,24.6,Director of Children's Services and Education
Hotels And Motels,Sas Hotels,Radisson Blu Liverpool Fo,Supplies and Services related expenditure,05/07/2022,275.7,Director of Children's Services and Education
Business To Business Eqpt/Furn,Stationery/Office Supplies,Www.Banneruk.Com,Supplies and Services related expenditure,06/07/2022,123.53,"Director of Housing, Neighbourhood and Building Services"
Facilities/Repair Supplies,Home Supply Warehouse Stores,B & Q 1260,Premises related expenditure,06/07/2022,13.33,Director of Adult Care
Facilities/Repair Supplies,Hardware Stores,Toolstation Uk,Premises related expenditure,06/07/2022,-33.32,Director of Adult Care
Facilities/Repair Supplies,Hardware Stores,Toolstation Uk,Premises related expenditure,06/07/2022,33.32,Director of Adult Care
Facilities/Repair Supplies,Lumber/Build. Supply Stores,Www.Screwfix.Com,Premises related expenditure,06/07/2022,51.74,Director of Adult Care
Type of Retail Store,Grocery Stores/Supermarkets,Tesco Stores 6002,Supplies and Services related expenditure,06/07/2022,5.7,Director of Children's Services and Education
Type of Retail Store,Fabric Stores,Hampshirefl,Supplies and Services related expenditure,06/07/2022,199.4,Director of Corporate Services
Medical,Med/Health Services - Def,Public Health England,Employees related expenditure,06/07/2022,699,Director of Portsmouth International Port
Personal Service Provider,Professional Services - Def,Iz *portsmouth Com,Supplies and Services related expenditure,06/07/2022,570,"Director of Housing, Neighbourhood and Building Services"
Utility,Phone Serv/Equip Utility,Zoom.Us 888-799-9666,Supplies and Services related expenditure,06/07/2022,11.99,Director of Children's Services and Education
Type of Retail Store,Grocery Stores/Supermarkets,Tesco Gift Card,Supplies and Services related expenditure,06/07/2022,25,Director of Children's Services and Education
Transportation Conveyor,Passenger Railways,Trainline.Com,Transport related expenditure,06/07/2022,55.29,Director of Children's Services and Education
Other Supplies,Misc Speciality Retail,Amznmktplace,Supplies and Services related expenditure,06/07/2022,14.57,Director of Children's Services and Education
Other Supplies,Misc Speciality Retail,Amznmktplace,Supplies and Services related expenditure,06/07/2022,14.57,Director of Children's Services and Education
Miscellaneous,Other Direct Marketers,Amazon.Co.Uk,Supplies and Services related expenditure,06/07/2022,37.49,Director of Regeneration
Business To Business Eqpt/Furn,Computer Software Stores,Take Note Ltd,Supplies and Services related expenditure,06/07/2022,355.05,Director of Children's Services and Education
Other Supplies,Misc Speciality Retail,W&p / Medirite,Premises related expenditure,06/07/2022,382.79,"Director of Housing, Neighbourhood and Building Services"
Other Supplies,Misc Speciality Retail,Timpson Ltd,Supplies and Services related expenditure,06/07/2022,12,Director of Children's Services and Education
Other Supplies,Misc Speciality Retail,Timpson Ltd,Supplies and Services related expenditure,06/07/2022,16.8,Director of Children's Services and Education
Other Supplies,Misc Speciality Retail,Amznmktplace,Supplies and Services related expenditure,06/07/2022,16.65,Director of Portsmouth International Port
Other Supplies,Misc Speciality Retail,Amznmktplace,Supplies and Services related expenditure,06/07/2022,54.96,Director of Portsmouth International Port
Other Supplies,Misc Speciality Retail,Amznmktplace,Supplies and Services related expenditure,06/07/2022,11.49,Director of Children's Services and Education
Business To Business Eqpt/Furn,Stationery/Office Supplies,Www.Banneruk.Com,Supplies and Services related expenditure,06/07/2022,10.87,"Director of Culture, Leisure & Regulatory Services"
Business To Business Eqpt/Furn,Stationery/Office Supplies,Www.Banneruk.Com,Supplies and Services related expenditure,06/07/2022,376.95,"Director of Culture, Leisure & Regulatory Services"
Miscellaneous,Charitable/Soc Service Orgs,Ztl*the Society Of St Jam,Supplies and Services related expenditure,06/07/2022,6.54,"Director of Culture, Leisure & Regulatory Services"
Business To Business Services,Misc Publishing & Printing,Www.Solopress.Com,Supplies and Services related expenditure,06/07/2022,20.73,"Director of Culture, Leisure & Regulatory Services"
Type of Retail Store,Misc Food Stores - Default,Premier Fresh & Local,Supplies and Services related expenditure,06/07/2022,20,Director of Children's Services and Education
Transportation Conveyor,Passenger Railways,Www.Redspottedhanky.Co,Transport related expenditure,06/07/2022,16.4,Director of Children's Services and Education
Type of Retail Store,Grocery Stores/Supermarkets,Asda Groceries Online,Supplies and Services related expenditure,06/07/2022,7.79,Director of Children's Services and Education
Type of Retail Store,Grocery Stores/Supermarkets,Asda Groceries Online,Supplies and Services related expenditure,06/07/2022,23.6,Director of Children's Services and Education
Type of Retail Store,Grocery Stores/Supermarkets,Asda Groceries Online,Supplies and Services related expenditure,06/07/2022,36.66,Director of Children's Services and Education
Government Service,Govt Serv - Default,Hm Passport Office,Supplies and Services related expenditure,06/07/2022,58.5,Director of Children's Services and Education
Government Service,Govt Serv - Default,Hm Passport Office,Supplies and Services related expenditure,06/07/2022,58.5,Director of Children's Services and Education
Government Service,Govt Serv - Default,Hm Passport Office,Supplies and Services related expenditure,06/07/2022,85,Director of Children's Services and Education
Facilities/Repair Supplies,Lumber/Build. Supply Stores,Www.Screwfix.Com,Premises related expenditure,06/07/2022,44.15,Director of Children's Services and Education
Type of Retail Store,Electronics Sales,Currys Online,Premises related expenditure,06/07/2022,83.32,Director of Children's Services and Education
Other Supplies,Misc Speciality Retail,Amznbusiness,Supplies and Services related expenditure,06/07/2022,115.83,Director of Children's Services and Education
Business To Business Eqpt/Furn,Stationery/Office Supplies,Www.Banneruk.Com,Capital related expenditure,06/07/2022,6.9,Capital - Leader
Business To Business Eqpt/Furn,Stationery/Office Supplies,Www.Banneruk.Com,Capital related expenditure,06/07/2022,6.92,Capital - Housing RA
Business To Business Eqpt/Furn,Stationery/Office Supplies,Www.Banneruk.Com,Capital related expenditure,06/07/2022,6.92,Capital - Housing RA
Business To Business Eqpt/Furn,Stationery/Office Supplies,Www.Banneruk.Com,Capital related expenditure,06/07/2022,6.92,"Director of Housing, Neighbourhood and Building Services"
Business To Business Eqpt/Furn,Stationery/Office Supplies,Www.Banneruk.Com,Capital related expenditure,06/07/2022,6.92,Capital - Housing RA
Business To Business Eqpt/Furn,Stationery/Office Supplies,Www.Banneruk.Com,Capital related expenditure,06/07/2022,6.92,Capital - Housing RA
Business To Business Eqpt/Furn,Stationery/Office Supplies,Www.Banneruk.Com,Capital related expenditure,06/07/2022,6.92,"Capital - Culture, Leisure & Economic Development"
Business To Business Eqpt/Furn,Stationery/Office Supplies,Www.Banneruk.Com,Capital related expenditure,06/07/2022,6.9,"Director of Housing, Neighbourhood and Building Services"
Government Service,Govt Serv - Default,Highways Ops Centre,Supplies and Services related expenditure,06/07/2022,159,"Director of Housing, Neighbourhood and Building Services"
Type of Retail Store,Grocery Stores/Supermarkets,One Stop Stores 2904,Supplies and Services related expenditure,06/07/2022,14.83,Director of Children's Services and Education
Transportation Conveyor,Bus Lines/Charter/Tour,First Hampshire,Supplies and Services related expenditure,06/07/2022,5,Director of Children's Services and Education
Business To Business Facility/,Industrial Supplies - Def,Flowtechnology Uk,Premises related expenditure,06/07/2022,61.29,Director of Portsmouth International Port
Other Supplies,Misc Speciality Retail,Amznmktplace,Supplies and Services related expenditure,06/07/2022,9.12,Director of Adult Care
Caterers Food,Caterers,Booker Limited Portsmouth,Supplies and Services related expenditure,06/07/2022,16.84,Director of Adult Care
Business Expenses/Services,News Dealers/Newsstands,Ts Food And Wine,Supplies and Services related expenditure,06/07/2022,2.25,Director of Children's Services and Education
Facilities/Repair Services,Spec Contractors - Default,Christie Intruder Alar,Supplies and Services related expenditure,06/07/2022,18.75,"Director of Housing, Neighbourhood and Building Services"
Type of Retail Store,Grocery Stores/Supermarkets,Tesco Store 3055,Supplies and Services related expenditure,06/07/2022,154.35,Director of Children's Services and Education
Transportation Conveyor,Local Commuter Transport,Hovertravel Ltd- Ecomm,Supplies and Services related expenditure,06/07/2022,13.1,Director of Children's Services and Education
Transportation Conveyor,Local Commuter Transport,Hovertravel Ltd- Ecomm,Supplies and Services related expenditure,06/07/2022,27,Director of Children's Services and Education
Transportation Conveyor,Local Commuter Transport,Hovertravel Ltd- Ecomm,Supplies and Services related expenditure,06/07/2022,27,Director of Children's Services and Education
Transportation Conveyor,Local Commuter Transport,Hovertravel Ltd- Ecomm,Supplies and Services related expenditure,06/07/2022,27,Director of Children's Services and Education
Business To Business Eqpt/Furn,Stationery/Office Supplies,Www.Banneruk.Com,Supplies and Services related expenditure,06/07/2022,231.2,Director of Portsmouth International Port
Transportation Conveyor,Local Commuter Transport,Hovertravel Ltd- Ecomm,Transport related expenditure,06/07/2022,21.6,Director of Children's Services and Education
Amusement/Entertainment,Bowling Alleys,Amfbowling.Co.Uk,Supplies and Services related expenditure,06/07/2022,276,Director of Children's Services and Education
Transportation Conveyor,Passenger Railways,Thetrainline.Com,Transport related expenditure,06/07/2022,14.67,Director of Children's Services and Education
Other Supplies,Misc Speciality Retail,Amznmktplace,Supplies and Services related expenditure,06/07/2022,30.51,"Director of Housing, Neighbourhood and Building Services"
Transportation Conveyor,Passenger Railways,Swrailwayselfserve,Transport related expenditure,06/07/2022,19.1,Director of Children's Services and Education
Type of Retail Store,Grocery Stores/Supermarkets,Tesco Store 3055,Supplies and Services related expenditure,06/07/2022,178.5,"Director of Housing, Neighbourhood and Building Services"
Hotels And Motels,Lodging/Hotels/Motels/Resorts,Hotel At Booking.Com,Supplies and Services related expenditure,06/07/2022,2447.32,"Director of Housing, Neighbourhood and Building Services"
Other Supplies,Misc Speciality Retail,Amznmktplace,Supplies and Services related expenditure,06/07/2022,24.07,Director of Children's Services and Education
Government Service,Govt Serv - Default,Portsmouth City Co,Transport related expenditure,06/07/2022,31.67,Director of Children's Services and Education
Type of Retail Store,Grocery Stores/Supermarkets,Tesco Store 3055,Supplies and Services related expenditure,06/07/2022,8.6,"Director of Housing, Neighbourhood and Building Services"
Type of Retail Store,Grocery Stores/Supermarkets,Tesco Store 3055,Supplies and Services related expenditure,06/07/2022,22.5,"Director of Housing, Neighbourhood and Building Services"
Facilities/Repair Supplies,Swimming Pools/Sales/Serv,Www.Lymingtonseawaterb,Supplies and Services related expenditure,06/07/2022,166.67,"Director of Housing, Neighbourhood and Building Services"
Amusement/Entertainment,Member Clubs/Sport/Rec/Golf,Lemur Attractions,Supplies and Services related expenditure,06/07/2022,450,"Director of Housing, Neighbourhood and Building Services"
Other Supplies,Discount Stores,Argos Ltd,Supplies and Services related expenditure,06/07/2022,75,Director of Children's Services and Education
Business To Business Eqpt/Furn,Stationery/Office Supplies,Www.Banneruk.Com,Supplies and Services related expenditure,06/07/2022,14.65,"Director of Housing, Neighbourhood and Building Services"
Other Supplies,Misc Speciality Retail,Amznmktplace,Supplies and Services related expenditure,06/07/2022,22,Director of Children's Services and Education
Automobile Rental,Automobile Rental Agency,Southern Motor Contrac,Transport related expenditure,06/07/2022,1029.4,Director of Regeneration
Automobile Rental,Automobile Rental Agency,Southern Motor Contrac,Transport related expenditure,06/07/2022,4217.49,Director of Regeneration
Facilities/Repair Supplies,Home Supply Warehouse Stores,B & Q 1238,Supplies and Services related expenditure,06/07/2022,15.83,"Director of Housing, Neighbourhood and Building Services"
Facilities/Repair Supplies,Home Supply Warehouse Stores,B & Q 1238,Supplies and Services related expenditure,06/07/2022,17.5,"Director of Housing, Neighbourhood and Building Services"
Facilities/Repair Supplies,Home Supply Warehouse Stores,B & Q 1260,Supplies and Services related expenditure,06/07/2022,26.25,"Director of Housing, Neighbourhood and Building Services"
Equipment And Furniture,Phone Serv/Equip Non-Util,Paypal,Supplies and Services related expenditure,06/07/2022,69,Director of Adult Care
Freight/Courier/Warehouse Svcs,Motor Freight Carriers,Safestore Ltd Online R,Agency and Third Party Payments related expenditure,06/07/2022,111.97,"Director of Housing, Neighbourhood and Building Services"
Freight/Courier/Warehouse Svcs,Motor Freight Carriers,Safestore Ltd Online R,Agency and Third Party Payments related expenditure,06/07/2022,137.5,"Director of Housing, Neighbourhood and Building Services"
Hotels And Motels,Hotel Ibis,Hotel Ibis,Agency and Third Party Payments related expenditure,06/07/2022,1366.1,"Director of Housing, Neighbourhood and Building Services"
Business Services,Employment/Temp Help Agen,Paypal,Employees related expenditure,06/07/2022,245,Director of Children's Services and Education
Business Services,Business Services - Default,J B Corrie & Co Ltd,Premises related expenditure,06/07/2022,97.83,Director of Children's Services and Education
Facilities Maintenance,Clean/Maint/Janitoral Serv,Wsm Credit Control,Premises related expenditure,06/07/2022,51.82,"Director of Housing, Neighbourhood and Building Services"
Amusement/Entertainment,Amusement/Rec Serv - Def,Www.Lasersquad.Co.Uk,Supplies and Services related expenditure,06/07/2022,337.5,"Director of Housing, Neighbourhood and Building Services"
Facilities/Repair Supplies,Home Supply Warehouse Stores,B & Q 1260,Supplies and Services related expenditure,06/07/2022,95.79,"Director of Culture, Leisure & Regulatory Services"
Business To Business Services,Information Retrieval Services,Www.Restore.Co.Uk,Supplies and Services related expenditure,06/07/2022,21.84,Solent LEP
Facilities/Repair Supplies,Home Supply Warehouse Stores,B & Q 1260,Supplies and Services related expenditure,06/07/2022,35,"Director of Housing, Neighbourhood and Building Services"
Other Supplies,Misc Speciality Retail,Amznmktplace,Supplies and Services related expenditure,06/07/2022,21.9,Director of Children's Services and Education
Other Supplies,Misc Speciality Retail,Amznmktplace,Supplies and Services related expenditure,06/07/2022,3.66,Director of Children's Services and Education
Business To Business Eqpt/Furn,Book Stores,Browns Books,Supplies and Services related expenditure,06/07/2022,72.12,Director of Children's Services and Education
Transportation Conveyor,Passenger Railways,Swrailwayselfserve,Transport related expenditure,06/07/2022,85.4,Director of Regeneration
Type of Retail Store,Artist/Craft Shops,Baker Ross,Supplies and Services related expenditure,06/07/2022,16.48,"Director of Housing, Neighbourhood and Building Services"
Other Supplies,Misc Speciality Retail,Amznmktplace,Supplies and Services related expenditure,06/07/2022,47.2,Director of Children's Services and Education
Freight/Courier/Warehouse Svcs,Motor Freight Carriers,Hermes Parcelnet Ltd T/A,Supplies and Services related expenditure,06/07/2022,3.24,Director of Portsmouth International Port
Medical,Dentists/Orthodontisis,Smile Dental Care,Supplies and Services related expenditure,06/07/2022,20,Director of Children's Services and Education
Other Supplies,Misc Speciality Retail,Amznmktplace,Supplies and Services related expenditure,06/07/2022,11.58,Director of Children's Services and Education
Other Supplies,Misc Speciality Retail,Amznbusiness,Supplies and Services related expenditure,06/07/2022,4.99,Director of Adult Care
Auto/Vehicle Expenses,Toll And Bridge Fees,Kingsway Tunnel,Supplies and Services related expenditure,06/07/2022,2,Director of Children's Services and Education
Type of Retail Store,Misc Food Stores - Default,Welcome Break,Supplies and Services related expenditure,06/07/2022,17.38,Director of Children's Services and Education
Transportation Conveyor,"Parking Lots, Meters, Garages",Ncp Limited,Supplies and Services related expenditure,06/07/2022,22.95,Director of Children's Services and Education
Eating And Drinking Places,Fast Food Restaurants,Burger King,Supplies and Services related expenditure,06/07/2022,6.24,Director of Children's Services and Education
Transportation Conveyor,Passenger Railways,New Southern Railw,Supplies and Services related expenditure,06/07/2022,27.92,Director of Children's Services and Education
Transportation Conveyor,Passenger Railways,Swrailwayselfserve,Supplies and Services related expenditure,06/07/2022,48.33,Director of Children's Services and Education
Other Supplies,Misc Speciality Retail,Amberley Security,Premises related expenditure,06/07/2022,9,Director of Children's Services and Education
Business To Business Eqpt/Furn,Computer Software Stores,Www.Widgit.Com,Supplies and Services related expenditure,06/07/2022,295,Director of Children's Services and Education
Miscellaneous,Financial Inst/Merchandise,Barratt Smith Brown,Premises related expenditure,06/07/2022,10,"Director of Housing, Neighbourhood and Building Services"
Miscellaneous,Financial Inst/Merchandise,Barratt Smith Brown,Premises related expenditure,06/07/2022,55,"Director of Housing, Neighbourhood and Building Services"
Business To Business Services,Misc Publishing & Printing,Asher Design & Print Ltd,Supplies and Services related expenditure,06/07/2022,25,Director of Children's Services and Education
Amusement/Entertainment,Theatrical Producers,Government Events,Supplies and Services related expenditure,06/07/2022,299,"Director of Housing, Neighbourhood and Building Services"
Other Supplies,Misc Gen Merchandise - Def,B&m Retail Ltd,Supplies and Services related expenditure,06/07/2022,14.76,Director of Children's Services and Education
Type of Retail Store,Grocery Stores/Supermarkets,Asda Stores,Supplies and Services related expenditure,06/07/2022,7,Director of Children's Services and Education
Government Service,Govt Serv - Default,Pcc Internet Payment,Supplies and Services related expenditure,06/07/2022,22,Director of Children's Services and Education
Government Service,Govt Serv - Default,Pcc Internet Payment,Supplies and Services related expenditure,06/07/2022,22,Director of Children's Services and Education
Government Service,Govt Serv - Default,Pcc Internet Payment,Supplies and Services related expenditure,06/07/2022,22,Director of Children's Services and Education
Transportation Conveyor,Passenger Railways,Trainline.Com,Transport related expenditure,06/07/2022,36.76,Director of Children's Services and Education
Type of Retail Store,Grocery Stores/Supermarkets,Asda Stores,Supplies and Services related expenditure,06/07/2022,10.85,"Director of Culture, Leisure & Regulatory Services"
Other Supplies,Misc Speciality Retail,Amznmktplace,Supplies and Services related expenditure,06/07/2022,71.2,Director of Regeneration
Type of Retail Store,Grocery Stores/Supermarkets,Co-Op Group Food,Supplies and Services related expenditure,06/07/2022,2.8,Director of Children's Services and Education
Type of Retail Store,Grocery Stores/Supermarkets,Asda Groceries Online,Supplies and Services related expenditure,06/07/2022,37.08,Director of Children's Services and Education
Facilities/Repair Supplies,Misc Home Furnishing,Www.Therange.Co.Uk,Supplies and Services related expenditure,06/07/2022,88.08,Director of Children's Services and Education
Government Service,Govt Serv - Default,Hampshire County Counc,Supplies and Services related expenditure,06/07/2022,317.83,Director of Children's Services and Education
Miscellaneous,Other Direct Marketers,Amazon.Co.Uk,Supplies and Services related expenditure,06/07/2022,47.16,Director of Adult Care
Other Supplies,Misc Speciality Retail,Amznmktplace,Supplies and Services related expenditure,06/07/2022,108.32,Director of Finance & Resources
Type of Retail Store,Grocery Stores/Supermarkets,Tesco Gift Card,Supplies and Services related expenditure,06/07/2022,20,Director of Children's Services and Education
Business To Business Eqpt/Furn,Stationery/Office Supplies,Www.Banneruk.Com,Supplies and Services related expenditure,06/07/2022,39.95,Director of Adult Care
Other Supplies,Misc Speciality Retail,Www.Cricksoft.Com,Supplies and Services related expenditure,04/07/2022,350,Director of Children's Services and Education
Clothing Services,Womens Ready To Wear Stores,New Look Internet,Supplies and Services related expenditure,05/07/2022,29.98,Director of Children's Services and Education
Business To Business Facility/,Industrial Supplies - Def,Arco Limited (Sap),Supplies and Services related expenditure,06/07/2022,62.57,"Director of Housing, Neighbourhood and Building Services"
Eating And Drinking Places,Eating Places/Restaurants,Delaneys,Supplies and Services related expenditure,06/07/2022,168,Director of Children's Services and Education
Business To Business Facility/,Industrial Supplies - Def,Arco Limited (Sap),Supplies and Services related expenditure,06/07/2022,29.33,"Director of Housing, Neighbourhood and Building Services"
Business To Business Facility/,Industrial Supplies - Def,Arco Limited (Sap),Supplies and Services related expenditure,06/07/2022,69.25,"Director of Housing, Neighbourhood and Building Services"
Business To Business Facility/,Industrial Supplies - Def,Arco Limited (Ahpp),Supplies and Services related expenditure,06/07/2022,137.85,Director of Portsmouth International Port
Hotels And Motels,Premier Travel Inns,Premier Inn 44537650,Transport related expenditure,06/07/2022,-112.49,Director of Children's Services and Education
Type of Retail Store,Grocery Stores/Supermarkets,Wm Morrisons Store,Supplies and Services related expenditure,06/07/2022,29.19,"Director of Housing, Neighbourhood and Building Services"
Type of Retail Store,Grocery Stores/Supermarkets,Wm Morrisons Store,Supplies and Services related expenditure,06/07/2022,6.67,"Director of Housing, Neighbourhood and Building Services"
Transportation Conveyor,Taxicabs/Limousines,Aqua Cars,Transport related expenditure,06/07/2022,10.6,"Director of Housing, Neighbourhood and Building Services"
Transportation Conveyor,Taxicabs/Limousines,Aqua Cars,Transport related expenditure,06/07/2022,10.7,"Director of Housing, Neighbourhood and Building Services"
Transportation Conveyor,Taxicabs/Limousines,Andicars,Transport related expenditure,06/07/2022,87.8,"Director of Housing, Neighbourhood and Building Services"
Type of Retail Store,Grocery Stores/Supermarkets,Iceland Foods,Supplies and Services related expenditure,06/07/2022,63.5,Director of Children's Services and Education
Facilities/Repair Supplies,Lumber/Build. Supply Stores,Www.Screwfix.Com,Premises related expenditure,07/07/2022,29.99,Director of Adult Care
Type of Retail Store,Electronics Sales,Currys Online,Supplies and Services related expenditure,07/07/2022,357.5,Director of Adult Care
Business To Business Facility/,Electrical Parts/Equipment,Www.4ourhouse.Co.Uk,Supplies and Services related expenditure,07/07/2022,43.32,Director of Children's Services and Education
Eating And Drinking Places,Eating Places/Restaurants,Brewhouse,Supplies and Services related expenditure,07/07/2022,25.08,"Director of Culture, Leisure & Regulatory Services"
Business To Business Eqpt/Furn,Stationery/Office Supplies,Www.Banneruk.Com,Supplies and Services related expenditure,07/07/2022,3.36,Director of Children's Services and Education
Government Service,Govt Serv - Default,Hm Passport Office,Supplies and Services related expenditure,07/07/2022,54,Director of Children's Services and Education
Transportation Conveyor,Local Commuter Transport,Hovertravel Ltd- Ecomm,Supplies and Services related expenditure,07/07/2022,54,Director of Children's Services and Education
Business To Business Eqpt/Furn,Stationery/Office Supplies,Www.Banneruk.Com,Supplies and Services related expenditure,07/07/2022,76.72,Director of Children's Services and Education
Type of Retail Store,Grocery Stores/Supermarkets,Tesco Stores 2322,Supplies and Services related expenditure,07/07/2022,120,Director of Children's Services and Education
Type of Retail Store,Grocery Stores/Supermarkets,Lidl Gb Portsmouth,Supplies and Services related expenditure,07/07/2022,5.28,Director of Adult Care
Facilities/Repair Supplies,Bicycle Shops/Sales/Service,Halfords 0852,Supplies and Services related expenditure,07/07/2022,5,Director of Children's Services and Education
Medical,Lab/Med/Hospital Equipment,Wightman & Parrish Ltd,Premises related expenditure,07/07/2022,8.35,Director of Adult Care
Medical,Lab/Med/Hospital Equipment,Wightman & Parrish Ltd,Supplies and Services related expenditure,07/07/2022,129.64,Director of Adult Care
Type of Retail Store,Grocery Stores/Supermarkets,Tesco Store 3055,Supplies and Services related expenditure,07/07/2022,29.03,"Director of Housing, Neighbourhood and Building Services"
Transportation Conveyor,Bus Lines/Charter/Tour,Www.Islandbuses.Info,Supplies and Services related expenditure,07/07/2022,14.8,Director of Children's Services and Education
Government Service,Govt Serv - Default,Portsmouth City Co,Transport related expenditure,07/07/2022,3,Director of Adult Care
Other Supplies,Misc Speciality Retail,Amznmktplace,Capital related expenditure,07/07/2022,14.16,"Capital - Culture, Leisure & Economic Development"
Government Service,Govt Serv - Default,Pcc Internet Payment,Supplies and Services related expenditure,07/07/2022,33,Director of Children's Services and Education
Type of Retail Store,Grocery Stores/Supermarkets,Asda Stores Ltd,Supplies and Services related expenditure,07/07/2022,50,Director of Children's Services and Education
Business To Business Eqpt/Furn,Stationery/Office Supplies,Www.Banneruk.Com,Supplies and Services related expenditure,07/07/2022,44.8,Director of Corporate Services
Facilities/Repair Supplies,Hardware Stores,Www.Lsengineers.Co.Uk,Supplies and Services related expenditure,07/07/2022,25.15,"Director of Housing, Neighbourhood and Building Services"
Other Supplies,Misc Speciality Retail,W&p / Medirite,Premises related expenditure,07/07/2022,209.9,"Director of Housing, Neighbourhood and Building Services"
Equipment And Furniture,Furniture/Equip Stores,City Museum,Supplies and Services related expenditure,07/07/2022,34.49,"Director of Culture, Leisure & Regulatory Services"
Other Supplies,Misc Speciality Retail,Amznmktplace,Supplies and Services related expenditure,07/07/2022,53.32,Director of Portsmouth International Port
Type of Retail Store,Grocery Stores/Supermarkets,Sainsburys S Mkts,Supplies and Services related expenditure,07/07/2022,6.1,"Director of Culture, Leisure & Regulatory Services"
Type of Retail Store,Grocery Stores/Supermarkets,Lidl Gb Portsmouth,Supplies and Services related expenditure,07/07/2022,4.04,Director of Adult Care
Government Service,Govt Serv - Default,Pcc Internet Payment,Supplies and Services related expenditure,07/07/2022,-11,Director of Adult Care
Type of Retail Store,Electronics Sales,Currys Online,Supplies and Services related expenditure,07/07/2022,149,Director of Adult Care
Utility,Utilities/Elec/Gas/H2O/Sani,Web*wybone,Supplies and Services related expenditure,07/07/2022,232.18,"Director of Housing, Neighbourhood and Building Services"
Utility,Utilities/Elec/Gas/H2O/Sani,Castle Water,Premises related expenditure,07/07/2022,133.6,Director of Portsmouth International Port
Other Supplies,Misc Gen Merchandise - Def,B&m Retail Ltd,Agency and Third Party Payments related expenditure,07/07/2022,4.55,Director of Children's Services and Education
Type of Retail Store,Hobby/Toy/Game Stores,Smyths Toys Portsmouth,Agency and Third Party Payments related expenditure,07/07/2022,64.98,Director of Children's Services and Education
Facilities/Repair Supplies,Lawn/Garden Supply/Nursery,Merry Mower Services Lt,Supplies and Services related expenditure,07/07/2022,23.32,"Director of Housing, Neighbourhood and Building Services"
Facilities/Repair Supplies,Lawn/Garden Supply/Nursery,Merry Mower Services Lt,Supplies and Services related expenditure,07/07/2022,117.3,"Director of Housing, Neighbourhood and Building Services"
Business To Business Services,Misc Publishing & Printing,Www.Solopress.Com,Capital related expenditure,07/07/2022,152.42,Capital - Leader
Business To Business Services,Misc Publishing & Printing,Www.Solopress.Com,Capital related expenditure,07/07/2022,190.81,Capital - Leader
Business To Business Services,Misc Publishing & Printing,Www.Solopress.Com,Supplies and Services related expenditure,07/07/2022,326,"Capital - Culture, Leisure & Economic Development"
Type of Retail Store,Grocery Stores/Supermarkets,Tesco Gift Card,Supplies and Services related expenditure,07/07/2022,20,Director of Children's Services and Education
Hotels And Motels,Lodging/Hotels/Motels/Resorts,Sumup *college Street Ab,Supplies and Services related expenditure,07/07/2022,79,Director of Children's Services and Education
Business To Business Eqpt/Furn,Stationery/Office Supplies,Pts,Supplies and Services related expenditure,07/07/2022,65.34,Director of Children's Services and Education
Other Supplies,Misc Speciality Retail,Amznmktplace,Supplies and Services related expenditure,07/07/2022,21.1,Director of Children's Services and Education
Facilities/Repair Supplies,Lawn/Garden Supply/Nursery,Havant Mowers & Garden M,Premises related expenditure,07/07/2022,120,"Director of Housing, Neighbourhood and Building Services"
Type of Retail Store,Grocery Stores/Supermarkets,Sainsburys.Co.Uk,Supplies and Services related expenditure,07/07/2022,136.8,"Director of Housing, Neighbourhood and Building Services"
Utility,Phone Serv/Equip Utility,Virgin Media Pymts,Supplies and Services related expenditure,07/07/2022,27.08,Director of Children's Services and Education
Business To Business Eqpt/Furn,Stationery/Office Supplies,Www.Banneruk.Com,Capital related expenditure,07/07/2022,12.61,Capital - Leader
Business To Business Eqpt/Furn,Stationery/Office Supplies,Www.Banneruk.Com,Capital related expenditure,07/07/2022,12.57,Capital - Housing RA
Business To Business Eqpt/Furn,Stationery/Office Supplies,Www.Banneruk.Com,Capital related expenditure,07/07/2022,12.57,Capital - Housing RA
Business To Business Eqpt/Furn,Stationery/Office Supplies,Www.Banneruk.Com,Capital related expenditure,07/07/2022,12.57,"Director of Housing, Neighbourhood and Building Services"
Business To Business Eqpt/Furn,Stationery/Office Supplies,Www.Banneruk.Com,Capital related expenditure,07/07/2022,12.57,Capital - Housing RA
Business To Business Eqpt/Furn,Stationery/Office Supplies,Www.Banneruk.Com,Capital related expenditure,07/07/2022,12.57,Capital - Housing RA
Business To Business Eqpt/Furn,Stationery/Office Supplies,Www.Banneruk.Com,Capital related expenditure,07/07/2022,12.57,"Capital - Culture, Leisure & Economic Development"
Business To Business Eqpt/Furn,Stationery/Office Supplies,Www.Banneruk.Com,Capital related expenditure,07/07/2022,12.57,"Director of Housing, Neighbourhood and Building Services"
Other Supplies,Misc Speciality Retail,Amznmktplace,Supplies and Services related expenditure,07/07/2022,149.99,Director of Regeneration
Other Supplies,Misc Speciality Retail,Amznmktplace,Capital related expenditure,07/07/2022,139.45,"Director of Housing, Neighbourhood and Building Services"
Business To Business Eqpt/Furn,Stationery/Office Supplies,Www.Banneruk.Com,Supplies and Services related expenditure,07/07/2022,27.85,"Director of Housing, Neighbourhood and Building Services"
Business To Business Eqpt/Furn,Stationery/Office Supplies,Www.Banneruk.Com,Supplies and Services related expenditure,07/07/2022,190.24,"Director of Housing, Neighbourhood and Building Services"
Miscellaneous,Veterinary Service,Companion Care Vet Surg,Supplies and Services related expenditure,07/07/2022,70.18,"Director of Housing, Neighbourhood and Building Services"
Facilities/Repair Supplies,Hardware Stores,Robert Dyas Holdng Ltd,Supplies and Services related expenditure,07/07/2022,22.06,"Director of Culture, Leisure & Regulatory Services"
Type of Retail Store,Grocery Stores/Supermarkets,Farmfoods 750,Supplies and Services related expenditure,07/07/2022,43.56,Director of Adult Care
Auto/Vehicle Expenses,Auto Service Shops/Non Dealer,Kwik Fit,Transport related expenditure,07/07/2022,20.83,"Director of Housing, Neighbourhood and Building Services"
Transportation Conveyor,"Parking Lots, Meters, Garages",Justpark,Transport related expenditure,07/07/2022,18.33,"Director of Culture, Leisure & Regulatory Services"
Eating And Drinking Places,Fast Food Restaurants,McDonalds,Supplies and Services related expenditure,07/07/2022,7.8,Director of Children's Services and Education
Other Supplies,Fuel Dealers,Solent Bottled Gas Sup,Supplies and Services related expenditure,07/07/2022,25.71,Director of Adult Care
Eating And Drinking Places,Eating Places/Restaurants,Costa,Supplies and Services related expenditure,07/07/2022,6.04,Director of Children's Services and Education
Type of Retail Store,Grocery Stores/Supermarkets,Tesco Store 3048,Supplies and Services related expenditure,07/07/2022,13.97,"Director of Housing, Neighbourhood and Building Services"
Business Expenses/Services,Postage Stamps,Post Office Counter,Supplies and Services related expenditure,07/07/2022,66.5,Director of Children's Services and Education
Business To Business Facility/,Hardware Equipment/Supplies,Croma Locksmiths & Sec,Supplies and Services related expenditure,07/07/2022,930,"Director of Housing, Neighbourhood and Building Services"
Transportation Conveyor,Marinas,Www.Marinesuperstore.Com,Supplies and Services related expenditure,07/07/2022,59.08,"Director of Culture, Leisure & Regulatory Services"
Other Supplies,Misc Speciality Retail,Amznmktplace,Supplies and Services related expenditure,07/07/2022,30.32,Director of Children's Services and Education
Transportation Conveyor,"Parking Lots, Meters, Garages",Queen Alexandra Hospit,Transport related expenditure,07/07/2022,2,Director of Children's Services and Education
Facilities Maintenance,Disinfect/Exterminate Serv,Rentokil Pest Cont,Premises related expenditure,07/07/2022,82.42,Director of Regeneration
Type of Retail Store,Grocery Stores/Supermarkets,Tesco Stores 5475,Supplies and Services related expenditure,07/07/2022,16,Director of Portsmouth International Port
Other Supplies,Misc Speciality Retail,Amznmktplace,Supplies and Services related expenditure,07/07/2022,19.16,Director of Children's Services and Education
Type of Retail Store,Grocery Stores/Supermarkets,Asda Stores,Supplies and Services related expenditure,07/07/2022,3.99,"Director of Housing, Neighbourhood and Building Services"
Type of Retail Store,Grocery Stores/Supermarkets,Asda Stores,Supplies and Services related expenditure,07/07/2022,4.99,"Director of Housing, Neighbourhood and Building Services"
Type of Retail Store,Grocery Stores/Supermarkets,Asda Stores,Supplies and Services related expenditure,07/07/2022,10.15,"Director of Housing, Neighbourhood and Building Services"
Type of Retail Store,Grocery Stores/Supermarkets,Asda Stores,Supplies and Services related expenditure,07/07/2022,13.91,"Director of Housing, Neighbourhood and Building Services"
Type of Retail Store,Grocery Stores/Supermarkets,Southern Co-Op 0006,Supplies and Services related expenditure,07/07/2022,64.03,"Director of Housing, Neighbourhood and Building Services"
Other Supplies,Misc Speciality Retail,W&p / Medirite,Supplies and Services related expenditure,07/07/2022,112.74,"Director of Housing, Neighbourhood and Building Services"
Other Supplies,Misc Speciality Retail,W&p / Medirite,Premises related expenditure,07/07/2022,124.71,"Director of Housing, Neighbourhood and Building Services"
Business Expenses/Services,News Dealers/Newsstands,Wh Smith,Transport related expenditure,07/07/2022,4.16,Director of Children's Services and Education
Eating And Drinking Places,Fast Food Restaurants,Kfc Havant,Agency and Third Party Payments related expenditure,07/07/2022,3.32,Director of Children's Services and Education
Eating And Drinking Places,Fast Food Restaurants,Kfc Havant,Agency and Third Party Payments related expenditure,07/07/2022,3.98,Director of Children's Services and Education
Type of Retail Store,Grocery Stores/Supermarkets,Tesco Stores 4579,Supplies and Services related expenditure,07/07/2022,15,Director of Children's Services and Education
Type of Retail Store,Grocery Stores/Supermarkets,Tesco Stores 4579,Supplies and Services related expenditure,07/07/2022,14.87,Director of Children's Services and Education
Type of Retail Store,Grocery Stores/Supermarkets,Tesco Stores 4579,Supplies and Services related expenditure,07/07/2022,8.45,Director of Children's Services and Education
Type of Retail Store,Grocery Stores/Supermarkets,Tesco Stores 4579,Supplies and Services related expenditure,07/07/2022,15.94,Director of Children's Services and Education
Type of Retail Store,Grocery Stores/Supermarkets,Tesco Stores 4579,Supplies and Services related expenditure,07/07/2022,18.33,Director of Children's Services and Education
Facilities/Repair Supplies,Lumber/Build. Supply Stores,Www.Screwfix.Com,Premises related expenditure,07/07/2022,105.37,Director of Children's Services and Education
Type of Retail Store,Misc Food Stores - Default,Gilletts Robuck,Supplies and Services related expenditure,07/07/2022,3.9,Director of Adult Care
Type of Retail Store,Grocery Stores/Supermarkets,Lidl Gb Portchester,Supplies and Services related expenditure,07/07/2022,7.28,Director of Adult Care
Other Supplies,Misc Gen Merchandise - Def,Wilko Retail Limited,Premises related expenditure,07/07/2022,5.42,"Director of Culture, Leisure & Regulatory Services"
Facilities/Repair Supplies,Swimming Pools/Sales/Serv,Poolpro (Hampshire) Li,Premises related expenditure,07/07/2022,529.17,"Director of Culture, Leisure & Regulatory Services"
Freight/Courier/Warehouse Svcs,Motor Freight Carriers,Safestore Ltd Online R,Agency and Third Party Payments related expenditure,07/07/2022,354.38,"Director of Housing, Neighbourhood and Building Services"
Business Expenses/Services,Postage Stamps,Post Office Self Serve,Supplies and Services related expenditure,07/07/2022,7.48,"Director of Housing, Neighbourhood and Building Services"
Business Expenses/Services,Postage Stamps,Post Office Counter,Supplies and Services related expenditure,07/07/2022,27.42,"Director of Housing, Neighbourhood and Building Services"
Business To Business Facility/,Hardware Equipment/Supplies,Croma Locksmiths & Sec,Supplies and Services related expenditure,07/07/2022,37.5,"Director of Housing, Neighbourhood and Building Services"
Business To Business Facility/,Industrial Supplies - Def,Arco Limited (Sap),Supplies and Services related expenditure,07/07/2022,38.9,"Director of Housing, Neighbourhood and Building Services"
Type of Retail Store,Sporting Goods Stores,Sportsdirect 363,Supplies and Services related expenditure,07/07/2022,7.5,"Director of Housing, Neighbourhood and Building Services"
Clothing Services,Mens/Womens Clothing Stores,Buytshirtsonlineltd,Supplies and Services related expenditure,07/07/2022,307.2,"Director of Housing, Neighbourhood and Building Services"
Type of Retail Store,Grocery Stores/Supermarkets,Asda Groceries Online,Supplies and Services related expenditure,07/07/2022,-10,"Director of Housing, Neighbourhood and Building Services"
Type of Retail Store,Grocery Stores/Supermarkets,Asda Groceries Online,Supplies and Services related expenditure,07/07/2022,104.6,"Director of Housing, Neighbourhood and Building Services"
Facilities/Repair Supplies,Hardware Stores,Home Bargains,Agency and Third Party Payments related expenditure,07/07/2022,21.97,Director of Children's Services and Education
Utility,Utilities/Elec/Gas/H2O/Sani,Https://Customerhu,Premises related expenditure,07/07/2022,210.68,Director of Children's Services and Education
Government Service,Schools - Default,Sumup *images Chichester,Supplies and Services related expenditure,07/07/2022,64,Director of Children's Services and Education
Utility,Phone Serv/Equip Utility,Zoom.Us 888-799-9666,Supplies and Services related expenditure,07/07/2022,11.99,Chief Exec
Transportation Conveyor,"Parking Lots, Meters, Garages",Total Parking Solution,Supplies and Services related expenditure,07/07/2022,1.43,Director of Children's Services and Education
Type of Retail Store,Grocery Stores/Supermarkets,Asda Stores,Supplies and Services related expenditure,07/07/2022,18.45,Director of Children's Services and Education
Type of Retail Store,Grocery Stores/Supermarkets,Grand Wine And Spirit,Supplies and Services related expenditure,07/07/2022,38.1,Director of Children's Services and Education
Type of Retail Store,Grocery Stores/Supermarkets,Tesco Stores 4611,Supplies and Services related expenditure,07/07/2022,1.85,"Director of Housing, Neighbourhood and Building Services"
Government Service,Govt Serv - Default,Dvla Driver Online,Supplies and Services related expenditure,07/07/2022,34,"Director of Housing, Neighbourhood and Building Services"
Business Expenses/Services,Stationery Stores,Www.Tts-Groups.Co.Uk,Supplies and Services related expenditure,07/07/2022,170,"Director of Culture, Leisure & Regulatory Services"
Business To Business Eqpt/Furn,Commercial Furniture,Portsdown Office Ltd,Premises related expenditure,07/07/2022,387.41,"Director of Housing, Neighbourhood and Building Services"
Business To Business Eqpt/Furn,Commercial Furniture,Portsdown Office Ltd,Premises related expenditure,07/07/2022,416.67,"Director of Housing, Neighbourhood and Building Services"
Business To Business Eqpt/Furn,Commercial Furniture,Portsdown Office Ltd,Premises related expenditure,07/07/2022,416.67,"Director of Housing, Neighbourhood and Building Services"
Government Service,Schools - Default,Study From Home,Employees related expenditure,07/07/2022,599,Director of Children's Services and Education
Freight/Courier/Warehouse Svcs,Motor Freight Carriers,Hermes Parcelnet Ltd T/A,Supplies and Services related expenditure,07/07/2022,6.48,Director of Portsmouth International Port
Type of Retail Store,Grocery Stores/Supermarkets,Tesco Stores 6002,Supplies and Services related expenditure,07/07/2022,6.64,Director of Children's Services and Education
Type of Retail Store,Grocery Stores/Supermarkets,Tesco Stores 6002,Supplies and Services related expenditure,07/07/2022,164.4,Director of Children's Services and Education
Other Supplies,Misc Speciality Retail,Amznmktplace,Supplies and Services related expenditure,07/07/2022,8.12,Director of Children's Services and Education
Other Supplies,Misc Speciality Retail,Amznmktplace,Supplies and Services related expenditure,07/07/2022,19.16,Director of Children's Services and Education
Type of Retail Store,Grocery Stores/Supermarkets,Iceland Foods,Supplies and Services related expenditure,07/07/2022,-12,Director of Children's Services and Education
Type of Retail Store,Grocery Stores/Supermarkets,Co-Op Group 070639,Supplies and Services related expenditure,07/07/2022,3.6,Director of Children's Services and Education
Transportation Conveyor,Passenger Railways,Swrailway Tck Off,Supplies and Services related expenditure,07/07/2022,98.25,Director of Children's Services and Education
Government Service,Govt Serv - Default,Pcc Internet Payment,Supplies and Services related expenditure,07/07/2022,22,Director of Children's Services and Education
Government Service,Govt Serv - Default,Pcc Internet Payment,Supplies and Services related expenditure,07/07/2022,-22,Director of Children's Services and Education
Government Service,Govt Serv - Default,Pcc Internet Payment,Supplies and Services related expenditure,07/07/2022,22,Director of Children's Services and Education
Transportation Conveyor,Passenger Railways,Trainline.Com,Transport related expenditure,07/07/2022,35.84,Director of Children's Services and Education
Hotels And Motels,Lodging/Hotels/Motels/Resorts,Sumup *college Street Ab,Supplies and Services related expenditure,07/07/2022,594,Director of Children's Services and Education
Business To Business Facility/,Industrial Supplies - Def,Arco Limited (Sap),Supplies and Services related expenditure,07/07/2022,-94.25,"Director of Housing, Neighbourhood and Building Services"
Type of Retail Store,Electronics Sales,Currys Online,Supplies and Services related expenditure,07/07/2022,140.83,Director of Adult Care
Type of Retail Store,Grocery Stores/Supermarkets,Tesco Stores 4579,Supplies and Services related expenditure,07/07/2022,172,Director of Children's Services and Education
Type of Retail Store,Cosmetic Stores,Sally Salon Services 4080,Supplies and Services related expenditure,07/07/2022,13.6,Director of Children's Services and Education
Other Supplies,Discount Stores,Argos Ltd,Premises related expenditure,07/07/2022,34,Director of Children's Services and Education
Other Supplies,Discount Stores,Argos Ltd,Premises related expenditure,07/07/2022,-38.95,Director of Children's Services and Education
Other Supplies,Discount Stores,Argos Ltd,Premises related expenditure,07/07/2022,38.95,Director of Children's Services and Education
Other Supplies,Misc Speciality Retail,Amznmktplace,Supplies and Services related expenditure,07/07/2022,28.31,"Director of Housing, Neighbourhood and Building Services"
Business Expenses/Services,Postage Stamps,Post Office Counter,Supplies and Services related expenditure,07/07/2022,1.25,Director of Children's Services and Education
Business Expenses/Services,Stationery Stores,Lyreco UK Limited,Supplies and Services related expenditure,08/07/2022,52.5,Director of Children's Services and Education
Miscellaneous,Member Organizations - Def,Www.Cips.Org,Employees related expenditure,08/07/2022,-95,Director of Finance & Resources
Business To Business Facility/,Industrial Supplies - Def,Arco Limited (Sap),Supplies and Services related expenditure,04/07/2022,33.92,Director of Corporate Services
Business To Business Facility/,Hardware Equipment/Supplies,Zoro Uk,Supplies and Services related expenditure,05/07/2022,29.98,"Director of Housing, Neighbourhood and Building Services"
Transportation Conveyor,Taxicabs/Limousines,Amk Chauffeur Driv,Transport related expenditure,06/07/2022,500,"Director of Housing, Neighbourhood and Building Services"
Transportation Conveyor,Taxicabs/Limousines,Amk Chauffeur Driv,Transport related expenditure,06/07/2022,576.67,"Director of Housing, Neighbourhood and Building Services"
Type of Retail Store,Sporting Goods Stores,Baltic Safety Prod,Supplies and Services related expenditure,07/07/2022,70.25,Director of Portsmouth International Port
Auto/Vehicle Expenses,Toll And Bridge Fees,Tfl Business Bops Web,Transport related expenditure,07/07/2022,15,"Director of Culture, Leisure & Regulatory Services"
Transportation Conveyor,Passenger Railways,Liverpool Lime Street,Transport related expenditure,07/07/2022,5.65,Director of Children's Services and Education
Hotels And Motels,Premier Travel Inns,Premier Inn 44533960,Transport related expenditure,07/07/2022,90.82,Director of Children's Services and Education
Hotels And Motels,Premier Travel Inns,Premier Inn 44537180,Agency and Third Party Payments related expenditure,07/07/2022,1039.5,"Director of Housing, Neighbourhood and Building Services"
Hotels And Motels,Premier Travel Inns,Premier Inn 44537180,Agency and Third Party Payments related expenditure,07/07/2022,1049.5,"Director of Housing, Neighbourhood and Building Services"
Equipment And Furniture,Household Appliance Stores,Tlc Direct.Co.Uk,Supplies and Services related expenditure,07/07/2022,61.75,"Director of Culture, Leisure & Regulatory Services"
Government Service,Govt Serv - Default,Www.Moneyclaim.Gov,Supplies and Services related expenditure,08/07/2022,115,"Director of Housing, Neighbourhood and Building Services"
Type of Retail Store,Grocery Stores/Supermarkets,Tesco Stores 6002,Supplies and Services related expenditure,08/07/2022,6.67,Director of Children's Services and Education
Type of Retail Store,Grocery Stores/Supermarkets,Tesco Stores 6002,Supplies and Services related expenditure,08/07/2022,8,Director of Children's Services and Education
Hotels And Motels,Travelodge,Travelodge Gb0000,Agency and Third Party Payments related expenditure,08/07/2022,-399.22,"Director of Housing, Neighbourhood and Building Services"
Transportation Conveyor,Local Commuter Transport,Hovertravel Ltd,Agency and Third Party Payments related expenditure,08/07/2022,287,Director of Children's Services and Education
Other Supplies,Misc Speciality Retail,Timpson Ltd,Supplies and Services related expenditure,08/07/2022,18,Director of Corporate Services
Transportation Conveyor,Passenger Railways,Https://Www.Southweste,Transport related expenditure,08/07/2022,31.35,Director of Finance & Resources
Government Service,Govt Serv - Default,Pcc Internet Payment,Supplies and Services related expenditure,08/07/2022,22,Director of Children's Services and Education
Government Service,Govt Serv - Default,Gen Register Office,Supplies and Services related expenditure,08/07/2022,33,Director of Children's Services and Education
Business To Business Services,Misc Publishing & Printing,Www.Patlabel.Co.Uk,Premises related expenditure,08/07/2022,33.45,Director of Children's Services and Education
Type of Retail Store,Grocery Stores/Supermarkets,Tesco Gift Card,Supplies and Services related expenditure,08/07/2022,10,Director of Children's Services and Education
Transportation Conveyor,Bus Lines/Charter/Tour,First Bus - Web,Transport related expenditure,08/07/2022,25,Director of Children's Services and Education
Transportation Conveyor,Bus Lines/Charter/Tour,First Bus - Web,Transport related expenditure,08/07/2022,25,Director of Children's Services and Education
Business To Business Eqpt/Furn,Stationery/Office Supplies,Www.Banneruk.Com,Supplies and Services related expenditure,08/07/2022,4.44,Director of Adult Care
Type of Retail Store,Grocery Stores/Supermarkets,Lalys,Supplies and Services related expenditure,08/07/2022,68,Director of Adult Care
Government Service,Govt Serv - Default,Hampshire County Counc,Supplies and Services related expenditure,08/07/2022,13.42,Director of Children's Services and Education
Government Service,Govt Serv - Default,Hampshire County Counc,Supplies and Services related expenditure,08/07/2022,13.42,Director of Children's Services and Education
Government Service,Govt Serv - Default,Hampshire County Counc,Supplies and Services related expenditure,08/07/2022,27.16,Director of Children's Services and Education
Government Service,Govt Serv - Default,Hampshire County Counc,Supplies and Services related expenditure,08/07/2022,27.15,Director of Children's Services and Education
Government Service,Govt Serv - Default,Hampshire County Counc,Supplies and Services related expenditure,08/07/2022,111.66,Director of Children's Services and Education
Digital Goods,"Digital Goods - Media, Books, Movies, Music",Sp Myfonts Inc,Supplies and Services related expenditure,08/07/2022,267.18,Director of Children's Services and Education
Type of Retail Store,Grocery Stores/Supermarkets,Tesco Stores 4611,Supplies and Services related expenditure,08/07/2022,50,Director of Children's Services and Education
Type of Retail Store,Grocery Stores/Supermarkets,Sainsburys S/mkts,Supplies and Services related expenditure,08/07/2022,2.5,"Director of Culture, Leisure & Regulatory Services"
Business Expenses/Services,Postage Stamps,Post Office Counter,Supplies and Services related expenditure,08/07/2022,4.1,Director of Children's Services and Education
Facilities/Repair Supplies,Home Supply Warehouse Stores,B & Q 1260,Premises related expenditure,08/07/2022,43.33,Director of Children's Services and Education
Transportation Conveyor,"Parking Lots, Meters, Garages",Ncp Portsmouth Market Wa,Supplies and Services related expenditure,08/07/2022,2.45,Director of Children's Services and Education
Transportation Conveyor,Local Commuter Transport,Gosport Ferry Limited,Supplies and Services related expenditure,08/07/2022,18.5,Director of Children's Services and Education
Other Supplies,Discount Stores,Argos Ltd,Supplies and Services related expenditure,08/07/2022,329,Director of Children's Services and Education
Government Service,Vocational/Trade Schools,The Commission For Local,Supplies and Services related expenditure,08/07/2022,45,Director of Corporate Services
Type of Retail Store,Grocery Stores/Supermarkets,Tesco Stores 4579,Supplies and Services related expenditure,08/07/2022,16.65,Director of Children's Services and Education
Type of Retail Store,Grocery Stores/Supermarkets,Tesco Stores 4579,Supplies and Services related expenditure,08/07/2022,59.58,Director of Children's Services and Education
Business Services,Business Services - Default,Voucher Express,Supplies and Services related expenditure,08/07/2022,21.5,Director of Children's Services and Education
Medical,Opticians,Specsavers Home Visits,Supplies and Services related expenditure,08/07/2022,85,Director of Adult Care
Government Service,Govt Serv - Default,Dbs F & Ps,Supplies and Services related expenditure,08/07/2022,471.65,"Director of Culture, Leisure & Regulatory Services"
Amusement/Entertainment,Theatrical Producers,Sumup *fine Voice Acad,Supplies and Services related expenditure,08/07/2022,740,"Director of Culture, Leisure & Regulatory Services"
Business Services,Advertising Services,Google Ads9547514387,Supplies and Services related expenditure,08/07/2022,500,"Director of Culture, Leisure & Regulatory Services"
Hotels And Motels,Premier Travel Inns,Premier Inn 44536680,Agency and Third Party Payments related expenditure,08/07/2022,266.67,"Director of Housing, Neighbourhood and Building Services"
Type of Retail Store,Grocery Stores/Supermarkets,Tesco Gift Card,Supplies and Services related expenditure,08/07/2022,20,Director of Children's Services and Education
Hotels And Motels,Lodging/Hotels/Motels/Resorts,Sumup *college Street Ab,Supplies and Services related expenditure,08/07/2022,612.9,Director of Children's Services and Education
Eating And Drinking Places,Fast Food Restaurants,43040140 Costa Coffee,Supplies and Services related expenditure,08/07/2022,5.83,Director of Children's Services and Education
Transportation Conveyor,"Parking Lots, Meters, Garages",3c_*portsmouth City Coun,Transport related expenditure,08/07/2022,2.7,Director of Children's Services and Education
Other Supplies,Misc Speciality Retail,Defib Pad,Supplies and Services related expenditure,08/07/2022,47.99,Director of Children's Services and Education
Clothing Services,Womens Access/Specialty,Bagsinbulk Europe,Supplies and Services related expenditure,08/07/2022,52.8,Director of Children's Services and Education
Clothing Services,Womens Access/Specialty,Bagsinbulk Europe,Supplies and Services related expenditure,08/07/2022,52.8,Director of Children's Services and Education
Other Supplies,Misc Speciality Retail,Amznmktplace,Supplies and Services related expenditure,08/07/2022,88.4,Director of Children's Services and Education
Facilities/Repair Supplies,Lumber/Build. Supply Stores,David Cover And Son,Supplies and Services related expenditure,08/07/2022,12.38,"Director of Housing, Neighbourhood and Building Services"
Facilities/Repair Supplies,Lumber/Build. Supply Stores,Screwfix Dir Ltd,Supplies and Services related expenditure,08/07/2022,21.5,"Director of Housing, Neighbourhood and Building Services"
Facilities/Repair Supplies,Swimming Pools/Sales/Serv,Www.Lymingtonseawaterb,Supplies and Services related expenditure,08/07/2022,544,"Director of Housing, Neighbourhood and Building Services"
Transportation Conveyor,Passenger Railways,Swrailway Tck Off,Transport related expenditure,08/07/2022,115.6,Director of Children's Services and Education
Clothing Services,Family Clothing Stores,Yazzoo Personalised,Supplies and Services related expenditure,08/07/2022,19.48,Director of Children's Services and Education
Clothing Services,Family Clothing Stores,Yazzoo Personalised,Supplies and Services related expenditure,08/07/2022,4.99,Director of Children's Services and Education
Type of Retail Store,Pet Stores/Food & Supply,Pets At Home Ltd,Supplies and Services related expenditure,08/07/2022,8.32,"Director of Housing, Neighbourhood and Building Services"
Miscellaneous,Veterinary Service,Companion Care Vet Surg,Supplies and Services related expenditure,08/07/2022,-23.15,"Director of Housing, Neighbourhood and Building Services"
Type of Retail Store,Grocery Stores/Supermarkets,Wm Morrisons Store,Supplies and Services related expenditure,08/07/2022,8.5,"Director of Housing, Neighbourhood and Building Services"
Type of Retail Store,Grocery Stores/Supermarkets,Wm Morrisons Store,Supplies and Services related expenditure,08/07/2022,30.67,"Director of Housing, Neighbourhood and Building Services"
Type of Retail Store,Grocery Stores/Supermarkets,Wm Morrisons Store,Supplies and Services related expenditure,08/07/2022,3.32,"Director of Housing, Neighbourhood and Building Services"
Amusement/Entertainment,Health & Beauty Spas,Sumup *waxfitness,Supplies and Services related expenditure,08/07/2022,300,"Director of Housing, Neighbourhood and Building Services"
Other Supplies,Misc Speciality Retail,Amznmktplace,Supplies and Services related expenditure,08/07/2022,57.98,Director of Regeneration
Facilities/Repair Supplies,Hardware Stores,Home Bargains,Supplies and Services related expenditure,08/07/2022,1.98,Director of Children's Services and Education
Type of Retail Store,Sporting Goods Stores,Decathlon,Supplies and Services related expenditure,08/07/2022,11.65,Director of Children's Services and Education
Government Service,Govt Serv - Default,Pcc Internet Payment,Agency and Third Party Payments related expenditure,08/07/2022,11,"Director of Culture, Leisure & Regulatory Services"
Government Service,Govt Serv - Default,Pcc Internet Payment,Agency and Third Party Payments related expenditure,08/07/2022,11,"Director of Culture, Leisure & Regulatory Services"
Government Service,Govt Serv - Default,Hampshire County Counc,Supplies and Services related expenditure,08/07/2022,91.92,Director of Children's Services and Education
Business To Business Facility/,Industrial Supplies - Def,Arco Limited (Ahpp),Supplies and Services related expenditure,08/07/2022,41.83,Director of Portsmouth International Port
Transportation Conveyor,Passenger Railways,Trainline.Com,Transport related expenditure,08/07/2022,101.23,Director of Children's Services and Education
Hotels And Motels,Lodging/Hotels/Motels/Resorts,Pembroke Park Hotel,Supplies and Services related expenditure,08/07/2022,1291.67,"Director of Housing, Neighbourhood and Building Services"
Medical,Med/Health Services - Def,The International Federat,Supplies and Services related expenditure,08/07/2022,20,Director of Adult Care
Medical,Med/Health Services - Def,The International Federat,Supplies and Services related expenditure,08/07/2022,9.99,Director of Adult Care
Auto/Vehicle Expenses,Tire Retread/Repair Shops,Setyres,Transport related expenditure,08/07/2022,60.62,"Director of Culture, Leisure & Regulatory Services"
Transportation Conveyor,Passenger Railways,Thetrainline.Com,Transport related expenditure,08/07/2022,13.89,Director of Children's Services and Education
Transportation Conveyor,Local Commuter Transport,Www.Wightlink.Co.Uk,Transport related expenditure,08/07/2022,17.1,Director of Children's Services and Education
Government Service,Vocational/Trade Schools,Https://Www.Citb.Co.Uk,Supplies and Services related expenditure,08/07/2022,99,"Director of Housing, Neighbourhood and Building Services"
Type of Retail Store,Grocery Stores/Supermarkets,Tesco Gift Card,Agency and Third Party Payments related expenditure,08/07/2022,50,Director of Children's Services and Education
Business To Business Facility/,Motor Vehicle Supply/New Parts,Truck & Trailer Specia,Premises related expenditure,08/07/2022,144,Director of Portsmouth International Port
Other Supplies,Misc Speciality Retail,Amz*subtel-Uk,Supplies and Services related expenditure,08/07/2022,-24.92,"Director of Housing, Neighbourhood and Building Services"
Hotels And Motels,Lodging/Hotels/Motels/Resorts,Lynton House,Supplies and Services related expenditure,08/07/2022,180,Director of Children's Services and Education
Type of Retail Store,Grocery Stores/Supermarkets,Tesco Stores 5475,Supplies and Services related expenditure,08/07/2022,10,"Director of Housing, Neighbourhood and Building Services"
Type of Retail Store,Electronics Sales,Currys Online,Supplies and Services related expenditure,08/07/2022,58.32,"Director of Housing, Neighbourhood and Building Services"
Type of Retail Store,Grocery Stores/Supermarkets,Sainsburys S/mkts,Transport related expenditure,08/07/2022,1.33,Director of Children's Services and Education
Miscellaneous,Charitable/Soc Service Orgs,Rm Subscription,Supplies and Services related expenditure,08/07/2022,35,"Director of Housing, Neighbourhood and Building Services"
Personal Service Provider,Computer Program/Sys Design,The Ppe Online Shop,Supplies and Services related expenditure,08/07/2022,30.95,"Director of Housing, Neighbourhood and Building Services"
Business Expenses/Services,Stationery Stores,Euroffice.Co.Uk,Supplies and Services related expenditure,08/07/2022,45.92,"Director of Housing, Neighbourhood and Building Services"
Other Supplies,Department Stores,Paypal,Supplies and Services related expenditure,08/07/2022,82.4,"Director of Housing, Neighbourhood and Building Services"
Personal Service Provider,Computer Program/Sys Design,The Ppe Online Shop,Supplies and Services related expenditure,08/07/2022,81.85,"Director of Housing, Neighbourhood and Building Services"
Facilities/Repair Services,Spec Contractors - Default,Southern Water,Supplies and Services related expenditure,08/07/2022,189.66,Director of Children's Services and Education
Type of Retail Store,Grocery Stores/Supermarkets,Tesco Store 2266,Supplies and Services related expenditure,08/07/2022,226,Director of Children's Services and Education
Facilities/Repair Supplies,Lumber/Build. Supply Stores,Www.Screwfix.Com,Supplies and Services related expenditure,08/07/2022,124.92,Director of Children's Services and Education
Other Supplies,Misc Speciality Retail,Amznmktplace,Supplies and Services related expenditure,08/07/2022,21.64,"Director of Housing, Neighbourhood and Building Services"
Transportation Conveyor,Steamship/Cruise Lines,Redfunnel.Co.Uk,Transport related expenditure,08/07/2022,58.5,Solent LEP
Other Supplies,Misc Speciality Retail,Amznmktplace,Supplies and Services related expenditure,08/07/2022,87.3,Director of Children's Services and Education
Other Supplies,Misc Speciality Retail,Amznmktplace,Supplies and Services related expenditure,08/07/2022,10,Director of Children's Services and Education
Type of Retail Store,Grocery Stores/Supermarkets,Tesco Stores 4579,Supplies and Services related expenditure,08/07/2022,6.58,Director of Children's Services and Education
Type of Retail Store,Grocery Stores/Supermarkets,Tesco Stores 4579,Supplies and Services related expenditure,08/07/2022,6.75,Director of Children's Services and Education
Other Supplies,Misc Speciality Retail,Iz *grounded In So,Supplies and Services related expenditure,08/07/2022,20,Director of Children's Services and Education
Eating And Drinking Places,Eating Places/Restaurants,Domino S Pizza,Agency and Third Party Payments related expenditure,08/07/2022,44.03,Director of Children's Services and Education
Business To Business Eqpt/Furn,Computer Software Stores,Emap Uk,Supplies and Services related expenditure,08/07/2022,5,Director of Children's Services and Education
Facilities/Repair Supplies,Home Supply Warehouse Stores,B & Q 1260,Premises related expenditure,08/07/2022,24.69,Director of Adult Care
Facilities/Repair Supplies,Lumber/Build. Supply Stores,Screwfix Dir. Ltd,Premises related expenditure,08/07/2022,40.82,Director of Adult Care
Type of Retail Store,Grocery Stores/Supermarkets,Asda Groceries Online,Supplies and Services related expenditure,08/07/2022,7.19,Director of Children's Services and Education
Type of Retail Store,Grocery Stores/Supermarkets,Tesco Stores 4579,Supplies and Services related expenditure,08/07/2022,5.46,Director of Children's Services and Education
Type of Retail Store,Grocery Stores/Supermarkets,Tesco Stores 4579,Supplies and Services related expenditure,08/07/2022,11.67,Director of Children's Services and Education
Type of Retail Store,Grocery Stores/Supermarkets,Lidl Gb Portsmouth,Supplies and Services related expenditure,08/07/2022,5.97,Director of Children's Services and Education
Type of Retail Store,Grocery Stores/Supermarkets,Lidl Gb Portsmouth,Supplies and Services related expenditure,08/07/2022,17.8,Director of Children's Services and Education
Type of Retail Store,Grocery Stores/Supermarkets,Asda Groceries Online,Supplies and Services related expenditure,08/07/2022,8.4,Director of Children's Services and Education
Type of Retail Store,Grocery Stores/Supermarkets,Asda Groceries Online,Supplies and Services related expenditure,08/07/2022,3.85,Director of Children's Services and Education
Type of Retail Store,Grocery Stores/Supermarkets,Asda Groceries Online,Supplies and Services related expenditure,08/07/2022,96.57,Director of Children's Services and Education
Transportation Conveyor,Passenger Railways,Swrailway Tck Off,Supplies and Services related expenditure,08/07/2022,63.9,Director of Children's Services and Education
Other Supplies,Misc Speciality Retail,Amznmktplace,Supplies and Services related expenditure,08/07/2022,44.98,Director of Adult Care
Type of Retail Store,Grocery Stores/Supermarkets,Wm Morrisons Store,Supplies and Services related expenditure,08/07/2022,34.48,Director of Children's Services and Education
Auto/Vehicle Expenses,Automated Fuel Dispensers,W M Morrison Petrol,Transport related expenditure,08/07/2022,59.99,Director of Children's Services and Education
Business To Business Eqpt/Furn,Stationery/Office Supplies,Www.Banneruk.Com,Supplies and Services related expenditure,08/07/2022,-251.78,Director of Adult Care
Facilities/Repair Supplies,Home Supply Warehouse Stores,B & Q 1260,Supplies and Services related expenditure,08/07/2022,19.17,"Director of Housing, Neighbourhood and Building Services"
Clothing Services,Misc Apparel/Access Shops,Etsy.Com - Storiuk,Supplies and Services related expenditure,08/07/2022,23.29,"Director of Culture, Leisure & Regulatory Services"
Facilities/Repair Supplies,Home Supply Warehouse Stores,B & Q 1260,Premises related expenditure,08/07/2022,129.47,Director of Children's Services and Education
Other Supplies,Misc Gen Merchandise - Def,B&m Retail Ltd,Supplies and Services related expenditure,08/07/2022,23.33,"Director of Culture, Leisure & Regulatory Services"
Type of Retail Store,Grocery Stores/Supermarkets,Wm Morrisons Store,Supplies and Services related expenditure,08/07/2022,40.79,Director of Adult Care
Business To Business Eqpt/Furn,Stationery/Office Supplies,Www.Banneruk.Com,Supplies and Services related expenditure,08/07/2022,60.32,Director of Adult Care
Type of Retail Store,Grocery Stores/Supermarkets,Aldi Stores Ltd,Supplies and Services related expenditure,08/07/2022,1.24,Director of Children's Services and Education
Type of Retail Store,Grocery Stores/Supermarkets,Asda Stores,Supplies and Services related expenditure,08/07/2022,1.75,Director of Children's Services and Education
Eating And Drinking Places,Fast Food Restaurants,McDonalds,Agency and Third Party Payments related expenditure,08/07/2022,7.85,Director of Children's Services and Education
Type of Retail Store,Grocery Stores/Supermarkets,Tesco Stores 6577,Supplies and Services related expenditure,08/07/2022,20,Director of Children's Services and Education
Type of Retail Store,Barber/Beauty Shops,Queen Malaika Beauty,Supplies and Services related expenditure,08/07/2022,25.99,Director of Children's Services and Education
Eating And Drinking Places,Eating Places/Restaurants,Takeaway Order,Agency and Third Party Payments related expenditure,08/07/2022,40,Director of Children's Services and Education
Type of Retail Store,Grocery Stores/Supermarkets,Tesco Stores 4579,Supplies and Services related expenditure,08/07/2022,8.3,Director of Children's Services and Education
Type of Retail Store,Grocery Stores/Supermarkets,Tesco Stores 4579,Supplies and Services related expenditure,08/07/2022,49.4,Director of Children's Services and Education
Type of Retail Store,Cosmetic Stores,Sally Salon Services 4209,Supplies and Services related expenditure,08/07/2022,84.99,Director of Children's Services and Education
Medical,Lab/Med/Hospital Equipment,Incchoice,Supplies and Services related expenditure,08/07/2022,124.67,Director of Adult Care
Transportation Conveyor,Bus Lines/Charter/Tour,First Bus - Web,Supplies and Services related expenditure,08/07/2022,4.5,Director of Children's Services and Education
Type of Retail Store,Grocery Stores/Supermarkets,Lidl Gb Portsmouth,Supplies and Services related expenditure,08/07/2022,13.56,Director of Children's Services and Education
Facilities/Repair Supplies,Lumber/Build. Supply Stores,Www.Screwfix.Com,Premises related expenditure,08/07/2022,35.03,Director of Children's Services and Education
Equipment And Furniture,Equip/Furn Rent/Lease Serv,L&s Waste Management L,Premises related expenditure,08/07/2022,65.74,Director of Children's Services and Education
Eating And Drinking Places,Eating Places/Restaurants,Ceanos,Supplies and Services related expenditure,09/07/2022,6.46,Director of Portsmouth International Port
Eating And Drinking Places,Fast Food Restaurants,Granny Gothard,Supplies and Services related expenditure,09/07/2022,5.2,Director of Children's Services and Education
Eating And Drinking Places,Eating Places/Restaurants,Deep Blue Restaurants,Agency and Third Party Payments related expenditure,09/07/2022,40.82,Director of Children's Services and Education
Type of Retail Store,Grocery Stores/Supermarkets,Twyford Off Licence,Supplies and Services related expenditure,09/07/2022,4.99,"Director of Housing, Neighbourhood and Building Services"
Type of Retail Store,Grocery Stores/Supermarkets,Aldi Stores Ltd,Supplies and Services related expenditure,09/07/2022,16.39,"Director of Housing, Neighbourhood and Building Services"
Utility,Computer Network/Info Svcs,Talktalk Telecom,Supplies and Services related expenditure,09/07/2022,16.67,Director of Children's Services and Education
Type of Retail Store,Grocery Stores/Supermarkets,Tesco Stores 4579,Supplies and Services related expenditure,09/07/2022,26.92,Director of Children's Services and Education
Type of Retail Store,Grocery Stores/Supermarkets,Asda Groceries Online,Supplies and Services related expenditure,09/07/2022,87.25,Director of Adult Care
Type of Retail Store,Grocery Stores/Supermarkets,Tesco Stores 4579,Supplies and Services related expenditure,09/07/2022,2.8,Director of Adult Care
Facilities/Repair Supplies,Lumber/Build. Supply Stores,Jewson Ltd,Supplies and Services related expenditure,09/07/2022,24.36,"Director of Housing, Neighbourhood and Building Services"
Type of Retail Store,Grocery Stores/Supermarkets,Tesco Store 3055,Supplies and Services related expenditure,09/07/2022,105.29,"Director of Housing, Neighbourhood and Building Services"
Other Supplies,Misc Gen Merchandise - Def,Sp Liquipak Ltd,Premises related expenditure,09/07/2022,524.88,"Director of Culture, Leisure & Regulatory Services"
Type of Retail Store,Misc Food Stores - Default,Sumup *grahampenrose I,Agency and Third Party Payments related expenditure,09/07/2022,8.4,Director of Children's Services and Education
Type of Retail Store,Grocery Stores/Supermarkets,Tesco Stores 4579,Premises related expenditure,09/07/2022,17.5,Director of Children's Services and Education
Type of Retail Store,Grocery Stores/Supermarkets,Tesco Stores 4579,Supplies and Services related expenditure,09/07/2022,4.85,Director of Children's Services and Education
Type of Retail Store,Grocery Stores/Supermarkets,Tesco Stores 4579,Supplies and Services related expenditure,09/07/2022,17.43,Director of Children's Services and Education
Type of Retail Store,Grocery Stores/Supermarkets,Asda Stores,Supplies and Services related expenditure,09/07/2022,46.75,Director of Children's Services and Education
Type of Retail Store,Grocery Stores/Supermarkets,Southern Co-Op 0008,Supplies and Services related expenditure,09/07/2022,21.5,Director of Children's Services and Education
Type of Retail Store,Grocery Stores/Supermarkets,Southern Co-Op 0328,Supplies and Services related expenditure,09/07/2022,2.5,Director of Children's Services and Education
Other Supplies,Misc Gen Merchandise - Def,B&m Retail Ltd,Supplies and Services related expenditure,09/07/2022,8.75,Director of Children's Services and Education
Other Supplies,Misc Gen Merchandise - Def,B&m Retail Ltd,Supplies and Services related expenditure,09/07/2022,8.75,Director of Children's Services and Education
Eating And Drinking Places,Eating Places/Restaurants,Ceanos,Supplies and Services related expenditure,10/07/2022,22.25,Director of Portsmouth International Port
Other Supplies,Misc Speciality Retail,Amznmktplace,Supplies and Services related expenditure,10/07/2022,13.87,Director of Children's Services and Education
Other Supplies,Misc Speciality Retail,Amznmktplace,Supplies and Services related expenditure,10/07/2022,13.87,Director of Children's Services and Education
Other Supplies,Misc Speciality Retail,Amznmktplace,Supplies and Services related expenditure,10/07/2022,13.87,Director of Children's Services and Education
Other Supplies,Misc Speciality Retail,Amznmktplace,Supplies and Services related expenditure,10/07/2022,13.87,Director of Children's Services and Education
Other Supplies,Misc Speciality Retail,Amznmktplace,Supplies and Services related expenditure,10/07/2022,13.87,Director of Children's Services and Education
Other Supplies,Misc Speciality Retail,Amznmktplace,Supplies and Services related expenditure,10/07/2022,13.87,Director of Children's Services and Education
Other Supplies,Misc Speciality Retail,Amznmktplace,Supplies and Services related expenditure,10/07/2022,14.16,Director of Children's Services and Education
Other Supplies,Misc Speciality Retail,Amznmktplace,Supplies and Services related expenditure,10/07/2022,27.74,Director of Children's Services and Education
Other Supplies,Misc Speciality Retail,Amznmktplace,Supplies and Services related expenditure,10/07/2022,27.74,Director of Children's Services and Education
Type of Retail Store,Grocery Stores/Supermarkets,Farmfoods 750,Supplies and Services related expenditure,10/07/2022,24.24,Director of Adult Care
Type of Retail Store,Grocery Stores/Supermarkets,Asda Stores,Supplies and Services related expenditure,10/07/2022,24.78,Director of Children's Services and Education
Other Supplies,Misc Speciality Retail,Amznmktplace,Premises related expenditure,10/07/2022,24.91,Director of Portsmouth International Port
Other Supplies,Misc Speciality Retail,Amznmktplace,Premises related expenditure,10/07/2022,108.32,Director of Portsmouth International Port
Business To Business Eqpt/Furn,Book Stores,Waterstones,Supplies and Services related expenditure,10/07/2022,6.99,Director of Children's Services and Education
Facilities/Repair Supplies,Home Supply Warehouse Stores,B & Q 1260,Premises related expenditure,10/07/2022,11.95,Director of Children's Services and Education
Other Supplies,Misc Speciality Retail,Amznmktplace,Premises related expenditure,10/07/2022,8.32,Director of Children's Services and Education
Other Supplies,Misc Speciality Retail,Amznbusiness,Premises related expenditure,10/07/2022,9.71,Director of Children's Services and Education
Other Supplies,Misc Speciality Retail,Amznmktplace,Supplies and Services related expenditure,11/07/2022,4.99,Director of Adult Care
Other Supplies,Misc Speciality Retail,Amznmktplace,Supplies and Services related expenditure,11/07/2022,43.96,Director of Adult Care
Type of Retail Store,Grocery Stores/Supermarkets,Iceland Foods,Supplies and Services related expenditure,09/07/2022,109.82,"Director of Housing, Neighbourhood and Building Services"
Type of Retail Store,Grocery Stores/Supermarkets,Iceland Foods,Supplies and Services related expenditure,10/07/2022,11,Director of Adult Care
Type of Retail Store,Grocery Stores/Supermarkets,Iceland Foods,Supplies and Services related expenditure,10/07/2022,60.45,Director of Adult Care
Freight/Courier/Warehouse Svcs,Public Warehousing,Big Yellow - Portsmout,Premises related expenditure,11/07/2022,160.05,"Director of Housing, Neighbourhood and Building Services"
Freight/Courier/Warehouse Svcs,Public Warehousing,Big Yellow - Portsmout,Premises related expenditure,11/07/2022,-142.5,"Director of Housing, Neighbourhood and Building Services"
Freight/Courier/Warehouse Svcs,Public Warehousing,Big Yellow - Portsmout,Premises related expenditure,11/07/2022,-158.29,"Director of Housing, Neighbourhood and Building Services"
Freight/Courier/Warehouse Svcs,Public Warehousing,Big Yellow - Portsmout,Premises related expenditure,11/07/2022,356.22,"Director of Housing, Neighbourhood and Building Services"
Hotels And Motels,Hotel Ibis,Hotel Ibis,Agency and Third Party Payments related expenditure,11/07/2022,1386.1,"Director of Housing, Neighbourhood and Building Services"
Hotels And Motels,Hotel Ibis,Hotel Ibis,Agency and Third Party Payments related expenditure,11/07/2022,1386.1,"Director of Housing, Neighbourhood and Building Services"
Hotels And Motels,Hotel Ibis,Hotel Ibis,Agency and Third Party Payments related expenditure,11/07/2022,1448.4,"Director of Housing, Neighbourhood and Building Services"
Business To Business Facility/,Industrial Supplies - Def,Arco Ltd,Supplies and Services related expenditure,11/07/2022,124.23,Director of Corporate Services
Transportation Conveyor,Local Commuter Transport,Www.Wightlink.Co.Uk,Supplies and Services related expenditure,11/07/2022,82.25,Director of Children's Services and Education
Business Expenses/Services,Quick Copy/Repro Services,Custom Labels Ltd,Supplies and Services related expenditure,11/07/2022,983,Director of Portsmouth International Port
Type of Retail Store,Grocery Stores/Supermarkets,Southern Co-Op 0007,Supplies and Services related expenditure,11/07/2022,16.32,Director of Adult Care
Medical,Lab/Med/Hospital Equipment,Wightman & Parrish Ltd,Premises related expenditure,11/07/2022,249.28,Director of Regeneration
Auto/Vehicle Expenses,Tire Retread/Repair Shops,Setyres,Transport related expenditure,11/07/2022,62.5,"Director of Culture, Leisure & Regulatory Services"
Type of Retail Store,Grocery Stores/Supermarkets,Sainsburys S Mkts,Supplies and Services related expenditure,11/07/2022,5.55,"Director of Culture, Leisure & Regulatory Services"
Facilities/Repair Supplies,Home Supply Warehouse Stores,B & Q 1260,Supplies and Services related expenditure,11/07/2022,7.75,Director of Children's Services and Education
Miscellaneous,Continuity/Subscription Mercht,Amazon Prime,Supplies and Services related expenditure,11/07/2022,6.66,Director of Children's Services and Education
Business To Business Eqpt/Furn,Stationery/Office Supplies,Www.Banneruk.Com,Supplies and Services related expenditure,11/07/2022,3.78,Director of Adult Care
Type of Retail Store,Electronics Sales,Currys Customer Cont,Supplies and Services related expenditure,11/07/2022,45,Director of Adult Care
Type of Retail Store,Grocery Stores/Supermarkets,Tesco Stores 4611,Agency and Third Party Payments related expenditure,11/07/2022,20,"Director of Housing, Neighbourhood and Building Services"
Type of Retail Store,Grocery Stores/Supermarkets,Tesco Stores 4579,Supplies and Services related expenditure,11/07/2022,17.11,Director of Adult Care
Eating And Drinking Places,Fast Food Restaurants,Subway 28994 London Road,Supplies and Services related expenditure,11/07/2022,6.39,Director of Children's Services and Education
Transportation Conveyor,Passenger Railways,Trainline,Transport related expenditure,11/07/2022,18.54,Director of Children's Services and Education
Government Service,Govt Serv - Default,Pageone,Supplies and Services related expenditure,11/07/2022,32.7,"Director of Culture, Leisure & Regulatory Services"
Clothing Services,Mens/Womens Clothing Stores,Sp Storage Bitz,Supplies and Services related expenditure,11/07/2022,151,Director of Children's Services and Education
Other Supplies,Misc Gen Merchandise - Def,Moonpig,Supplies and Services related expenditure,11/07/2022,7.48,Director of Children's Services and Education
Business Expenses/Services,Stationery Stores,Printpond.Co.Uk,Supplies and Services related expenditure,11/07/2022,52.2,Director of Children's Services and Education
Eating And Drinking Places,Eating Places/Restaurants,Fcb Coffee,Supplies and Services related expenditure,11/07/2022,6.83,"Director of Culture, Leisure & Regulatory Services"
Transportation Conveyor,Passenger Railways,Gtr Rail Ticket,Transport related expenditure,11/07/2022,26.2,"Director of Culture, Leisure & Regulatory Services"
Type of Retail Store,Grocery Stores/Supermarkets,Asda Groceries Online,Supplies and Services related expenditure,11/07/2022,2.33,Director of Children's Services and Education
Type of Retail Store,Grocery Stores/Supermarkets,Asda Groceries Online,Supplies and Services related expenditure,11/07/2022,98.3,Director of Children's Services and Education
Business To Business Eqpt/Furn,Stationery/Office Supplies,Www.Banneruk.Com,Supplies and Services related expenditure,11/07/2022,12.16,"Director of Housing, Neighbourhood and Building Services"
Other Supplies,Misc Speciality Retail,W&p / Medirite,Premises related expenditure,11/07/2022,90.27,"Director of Housing, Neighbourhood and Building Services"
Eating And Drinking Places,Fast Food Restaurants,43040380 Costa Coffee,Supplies and Services related expenditure,11/07/2022,3.42,Director of Children's Services and Education
Eating And Drinking Places,Fast Food Restaurants,McDonalds,Supplies and Services related expenditure,11/07/2022,5.25,Director of Children's Services and Education
Type of Retail Store,Grocery Stores/Supermarkets,Tesco Store 3055,Supplies and Services related expenditure,11/07/2022,6.25,Director of Children's Services and Education
Type of Retail Store,Grocery Stores/Supermarkets,Tesco Store 3055,Supplies and Services related expenditure,11/07/2022,34.14,Director of Children's Services and Education
Business To Business Facility/,Electrical Parts/Equipment,Wydels Ltd,Premises related expenditure,11/07/2022,145,Director of Portsmouth International Port
Business To Business Facility/,Electrical Parts/Equipment,Wydels Ltd,Premises related expenditure,11/07/2022,695,Director of Portsmouth International Port
Type of Retail Store,Grocery Stores/Supermarkets,Tesco Stores 4579,Supplies and Services related expenditure,11/07/2022,23.99,Director of Adult Care
Eating And Drinking Places,Fast Food Restaurants,McDonalds,Supplies and Services related expenditure,11/07/2022,0.99,Director of Children's Services and Education
Other Supplies,Misc Gen Merchandise - Def,B&m Retail Ltd,Supplies and Services related expenditure,11/07/2022,6.99,Director of Children's Services and Education
Other Supplies,Misc Speciality Retail,Amznmktplace,Supplies and Services related expenditure,11/07/2022,18.74,"Director of Housing, Neighbourhood and Building Services"
Equipment And Furniture,Household Appliance Stores,Machine Mart Ltd,Supplies and Services related expenditure,11/07/2022,24.99,"Director of Housing, Neighbourhood and Building Services"
Business Expenses/Services,Stationery Stores,Www.Tts-Groups.Co.Uk,Supplies and Services related expenditure,11/07/2022,15.94,Director of Children's Services and Education
Type of Retail Store,Grocery Stores/Supermarkets,Tesco Store 3055,Supplies and Services related expenditure,11/07/2022,2.2,Director of Children's Services and Education
Type of Retail Store,Grocery Stores/Supermarkets,Tesco Store 3055,Supplies and Services related expenditure,11/07/2022,35.3,Director of Children's Services and Education
Type of Retail Store,Grocery Stores/Supermarkets,Tesco Store 3055,Supplies and Services related expenditure,11/07/2022,18.24,Director of Children's Services and Education
Type of Retail Store,Grocery Stores/Supermarkets,Tesco Store 3055,Supplies and Services related expenditure,11/07/2022,10.96,Director of Children's Services and Education
Type of Retail Store,Grocery Stores/Supermarkets,Tesco Store 3055,Supplies and Services related expenditure,11/07/2022,34.72,Director of Children's Services and Education
Business Expenses/Services,Books/Periodicals/Newspapers,Sp Booklife-Publishi,Supplies and Services related expenditure,11/07/2022,114,Director of Children's Services and Education
Freight/Courier/Warehouse Svcs,Motor Freight Carriers,Williams Shipping,Transport related expenditure,11/07/2022,472,Director of Portsmouth International Port
Business Services,Advertising Services,Facebk *f4jfqfpql2,Supplies and Services related expenditure,11/07/2022,400,"Director of Culture, Leisure & Regulatory Services"
Other Supplies,Wholesale Clubs,The Fruit Basket,Supplies and Services related expenditure,11/07/2022,137.87,"Director of Culture, Leisure & Regulatory Services"
Type of Retail Store,Grocery Stores/Supermarkets,Sainsburys S/mkts,Supplies and Services related expenditure,11/07/2022,3.25,Director of Children's Services and Education
Type of Retail Store,Grocery Stores/Supermarkets,Sainsburys S/mkts,Supplies and Services related expenditure,11/07/2022,6.55,Director of Children's Services and Education
Type of Retail Store,Grocery Stores/Supermarkets,Tesco Stores 4579,Supplies and Services related expenditure,11/07/2022,46.1,Director of Children's Services and Education
Business To Business Eqpt/Furn,Stationery/Office Supplies,Www.Banneruk.Com,Supplies and Services related expenditure,11/07/2022,5.62,"Director of Housing, Neighbourhood and Building Services"
Transportation Conveyor,"Parking Lots, Meters, Garages",Marina Deevelopments L,Transport related expenditure,11/07/2022,5,"Director of Culture, Leisure & Regulatory Services"
Type of Retail Store,Grocery Stores/Supermarkets,Wm Morrisons Store,Supplies and Services related expenditure,11/07/2022,16.04,Director of Children's Services and Education
Type of Retail Store,Grocery Stores/Supermarkets,Wm Morrisons Store,Supplies and Services related expenditure,11/07/2022,65.63,Director of Children's Services and Education
Type of Retail Store,Electronics Sales,Sp Soundcore Uk,Supplies and Services related expenditure,11/07/2022,46.66,"Director of Culture, Leisure & Regulatory Services"
Transportation Conveyor,Taxicabs/Limousines,Sumup *robert Johnson,Supplies and Services related expenditure,11/07/2022,5.2,"Director of Housing, Neighbourhood and Building Services"
Type of Retail Store,Grocery Stores/Supermarkets,Tesco Store 3048,Supplies and Services related expenditure,11/07/2022,70.41,"Director of Housing, Neighbourhood and Building Services"
Type of Retail Store,Grocery Stores/Supermarkets,Wm Morrisons Store,Supplies and Services related expenditure,11/07/2022,13.56,Director of Adult Care
Type of Retail Store,Grocery Stores/Supermarkets,Wm Morrisons Store,Supplies and Services related expenditure,11/07/2022,1.87,Director of Adult Care
Type of Retail Store,Grocery Stores/Supermarkets,Lidl Gb Portsmouth,Supplies and Services related expenditure,11/07/2022,9.92,Director of Children's Services and Education
Digital Goods,"Digital Goods - Media, Books, Movies, Music",Sp Myfonts Inc,Supplies and Services related expenditure,11/07/2022,63.02,Director of Corporate Services
Transportation Conveyor,Passenger Railways,Trainline.Com,Supplies and Services related expenditure,11/07/2022,65.38,Director of Children's Services and Education
Type of Retail Store,Grocery Stores/Supermarkets,Asda Stores Ltd,Supplies and Services related expenditure,11/07/2022,115,Director of Children's Services and Education
Facilities/Repair Supplies,Lumber/Build. Supply Stores,Www.Screwfix.Com,Supplies and Services related expenditure,11/07/2022,13.49,Director of Children's Services and Education
Type of Retail Store,Grocery Stores/Supermarkets,Asda Superstore,Supplies and Services related expenditure,11/07/2022,5.42,Director of Adult Care
Business To Business Facility/,Electrical Parts/Equipment,Newey & Eyre,Supplies and Services related expenditure,11/07/2022,611.04,"Director of Housing, Neighbourhood and Building Services"
Facilities/Repair Services,Gen Contractors Residentl/Coml,Sq *hampshire Removals,Supplies and Services related expenditure,11/07/2022,750,"Director of Housing, Neighbourhood and Building Services"
Business To Business Facility/,Construction Materials - Def,Aggregate.Com,Supplies and Services related expenditure,11/07/2022,175.5,"Director of Housing, Neighbourhood and Building Services"
Type of Retail Store,Grocery Stores/Supermarkets,Tesco Store 3055,Supplies and Services related expenditure,11/07/2022,26.43,Director of Children's Services and Education
Type of Retail Store,Grocery Stores/Supermarkets,Tesco Store 3055,Supplies and Services related expenditure,11/07/2022,13.17,Director of Children's Services and Education
Type of Retail Store,Grocery Stores/Supermarkets,Tesco Store 3055,Supplies and Services related expenditure,11/07/2022,59.98,Director of Children's Services and Education
Transportation Conveyor,Steamship/Cruise Lines,Redfunnel.Co.Uk,Transport related expenditure,11/07/2022,18.9,Solent LEP
Transportation Conveyor,Local Commuter Transport,Hovertravel Ltd- Ecomm,Transport related expenditure,11/07/2022,20.8,Solent LEP
Transportation Conveyor,Steamship/Cruise Lines,Redfunnel.Co.Uk,Transport related expenditure,11/07/2022,26.3,Solent LEP
Transportation Conveyor,Steamship/Cruise Lines,Redfunnel.Co.Uk,Transport related expenditure,11/07/2022,26.3,Solent LEP
Transportation Conveyor,Local Commuter Transport,Hovertravel Ltd- Ecomm,Transport related expenditure,11/07/2022,27,Solent LEP
Government Service,Govt Serv - Default,Hampshire County Counc,Supplies and Services related expenditure,11/07/2022,377.53,Director of Children's Services and Education
Other Supplies,Misc Gen Merchandise - Def,Www.School-Bears.Co.Uk,Supplies and Services related expenditure,11/07/2022,235,Director of Children's Services and Education
Caterers Food,Caterers,Miltoncross Academy,Supplies and Services related expenditure,11/07/2022,12,Director of Children's Services and Education
Other Supplies,Discount Stores,Argos Ltd,Supplies and Services related expenditure,11/07/2022,29.12,Director of Children's Services and Education
Type of Retail Store,Grocery Stores/Supermarkets,Lidl Gb Portsmouth,Supplies and Services related expenditure,11/07/2022,8.04,Director of Children's Services and Education
Type of Retail Store,Grocery Stores/Supermarkets,Lidl Gb Portsmouth,Supplies and Services related expenditure,11/07/2022,1.82,Director of Children's Services and Education
Facilities/Repair Supplies,Lumber/Build. Supply Stores,Www.Screwfix.Com,Supplies and Services related expenditure,11/07/2022,7.32,"Director of Culture, Leisure & Regulatory Services"
Type of Retail Store,Grocery Stores/Supermarkets,Asda Groceries Online,Supplies and Services related expenditure,11/07/2022,138.97,Director of Children's Services and Education
Government Service,Govt Serv - Default,Pcc Internet Payment,Supplies and Services related expenditure,11/07/2022,9.17,"Director of Housing, Neighbourhood and Building Services"
Miscellaneous,Misc Personal Serv - Def,Newlyn Plc,Transport related expenditure,11/07/2022,232.5,Director of Children's Services and Education
Other Supplies,Misc Gen Merchandise - Def,B&m 566 - Farlington,Supplies and Services related expenditure,11/07/2022,11.9,Director of Children's Services and Education
Type of Retail Store,Grocery Stores/Supermarkets,Asda Groceries Online,Supplies and Services related expenditure,11/07/2022,44.02,Director of Children's Services and Education
Government Service,Govt Serv - Default,2maa031609387 Td E-Pmt,Supplies and Services related expenditure,11/07/2022,62.5,Director of Children's Services and Education
Business Expenses/Services,Stationery Stores,Www.Tts-Groups.Co.Uk,Supplies and Services related expenditure,11/07/2022,282.6,Director of Children's Services and Education
Type of Retail Store,Grocery Stores/Supermarkets,Asda Groceries Online,Supplies and Services related expenditure,11/07/2022,-0.35,Director of Children's Services and Education
Type of Retail Store,Grocery Stores/Supermarkets,Asda Groceries Online,Supplies and Services related expenditure,11/07/2022,55.89,Director of Children's Services and Education
Business To Business Eqpt/Furn,Stationery/Office Supplies,Www.Banneruk.Com,Supplies and Services related expenditure,11/07/2022,6.55,Director of Children's Services and Education
Business To Business Eqpt/Furn,Stationery/Office Supplies,Www.Banneruk.Com,Supplies and Services related expenditure,11/07/2022,58.15,Director of Children's Services and Education
Business To Business Eqpt/Furn,Stationery/Office Supplies,Www.Banneruk.Com,Supplies and Services related expenditure,11/07/2022,101.41,Director of Children's Services and Education
Business To Business Eqpt/Furn,Stationery/Office Supplies,Www.Banneruk.Com,Supplies and Services related expenditure,11/07/2022,124.67,Director of Children's Services and Education
Type of Retail Store,Grocery Stores/Supermarkets,Asda Stores,Supplies and Services related expenditure,11/07/2022,10,Director of Children's Services and Education
Type of Retail Store,Grocery Stores/Supermarkets,Asda Groceries Online,Supplies and Services related expenditure,11/07/2022,-1.19,Director of Children's Services and Education
Type of Retail Store,Grocery Stores/Supermarkets,Asda Groceries Online,Supplies and Services related expenditure,11/07/2022,6,Director of Children's Services and Education
Type of Retail Store,Grocery Stores/Supermarkets,Asda Groceries Online,Supplies and Services related expenditure,11/07/2022,46.2,Director of Children's Services and Education
Type of Retail Store,Grocery Stores/Supermarkets,Asda Groceries Online,Supplies and Services related expenditure,11/07/2022,60.89,Director of Children's Services and Education
Other Supplies,Wholesale Clubs,The Fruit Basket,Supplies and Services related expenditure,11/07/2022,147.38,Director of Adult Care
Type of Retail Store,Freezer/Meat Lockers,Dennis Edwards Food Serv,Supplies and Services related expenditure,11/07/2022,207.7,Director of Adult Care
Type of Retail Store,Freezer/Meat Lockers,Dennis Edwards Food Serv,Supplies and Services related expenditure,11/07/2022,1.82,Director of Adult Care
Business To Business Facility/,Industrial Supplies - Def,Arco Limited (Ahpp),Supplies and Services related expenditure,06/07/2022,19.3,Director of Portsmouth International Port
Hotels And Motels,Premier Travel Inns,Premier Inn44010625,Agency and Third Party Payments related expenditure,11/07/2022,708.75,"Director of Housing, Neighbourhood and Building Services"
Hotels And Motels,Premier Travel Inns,Premier Inn 44536680,Agency and Third Party Payments related expenditure,11/07/2022,756.25,"Director of Housing, Neighbourhood and Building Services"
Business To Business Eqpt/Furn,Stationery/Office Supplies,Staples,Supplies and Services related expenditure,11/07/2022,20.72,Director of Regeneration
Other Supplies,Misc Speciality Retail,W&p / Medirite,Premises related expenditure,11/07/2022,270.43,"Director of Housing, Neighbourhood and Building Services"
Hotels And Motels,Premier Travel Inns,Premier Inn 44531690,Supplies and Services related expenditure,11/07/2022,75.8,Director of Children's Services and Education
Government Service,Schools - Default,Right Online Course Co,Supplies and Services related expenditure,11/07/2022,43.7,"Director of Housing, Neighbourhood and Building Services"
Hotels And Motels,Premier Travel Inns,Premier Inn44013150,Supplies and Services related expenditure,11/07/2022,-75.5,Director of Adult Care
Business Expenses/Services,Postage Stamps,Royal Mail Group Ltd,Supplies and Services related expenditure,12/07/2022,0.6,Director of Children's Services and Education
Transportation Conveyor,Passenger Railways,Trainline.Com,Transport related expenditure,12/07/2022,43.89,"Director of Housing, Neighbourhood and Building Services"
Hotels And Motels,Hotel Ibis,Hotel Ibis,Agency and Third Party Payments related expenditure,12/07/2022,1286,"Director of Housing, Neighbourhood and Building Services"
Business Services,Business Services - Default,Siteground Hosting,Supplies and Services related expenditure,12/07/2022,14.99,Director of Corporate Services
Business To Business Facility/,Industrial Supplies - Def,Arco Limited (Sap),Supplies and Services related expenditure,12/07/2022,74.38,"Director of Housing, Neighbourhood and Building Services"
Other Supplies,Misc Speciality Retail,Timpson Ltd,Supplies and Services related expenditure,12/07/2022,6.67,"Director of Culture, Leisure & Regulatory Services"
Business To Business Eqpt/Furn,Stationery/Office Supplies,Www.Banneruk.Com,Supplies and Services related expenditure,12/07/2022,54.44,"Director of Housing, Neighbourhood and Building Services"
Business To Business Eqpt/Furn,Stationery/Office Supplies,Www.Banneruk.Com,Supplies and Services related expenditure,12/07/2022,100.31,"Director of Housing, Neighbourhood and Building Services"
Business To Business Eqpt/Furn,Stationery/Office Supplies,Www.Banneruk.Com,Supplies and Services related expenditure,12/07/2022,38.89,Director of Adult Care
Other Supplies,Misc Speciality Retail,Amznmktplace,Supplies and Services related expenditure,12/07/2022,12.48,Director of Regeneration
Transportation Conveyor,Transportation Svcs - Default,Aqua Cars,Supplies and Services related expenditure,12/07/2022,4.5,Director of Children's Services and Education
Transportation Conveyor,Taxicabs/Limousines,Aqua Cars,Supplies and Services related expenditure,12/07/2022,5.5,Director of Children's Services and Education
Amusement/Entertainment,Motion Picture Theatres,Vue Entertainment Ltd,Supplies and Services related expenditure,12/07/2022,17.67,Director of Children's Services and Education
Transportation Conveyor,Travel Agencies,Airbnb * Hm9ykjw8ky,Supplies and Services related expenditure,12/07/2022,1379.91,Director of Children's Services and Education
Business To Business Eqpt/Furn,Computer Software Stores,Sp Clever Never Goes,Supplies and Services related expenditure,12/07/2022,104.5,Director of Children's Services and Education
Business Expenses/Services,Postage Stamps,Royal Mail Online Shop,Supplies and Services related expenditure,12/07/2022,163,Director of Children's Services and Education
Type of Retail Store,Grocery Stores/Supermarkets,Tesco Stores 4579,Supplies and Services related expenditure,12/07/2022,37.58,Director of Children's Services and Education
Type of Retail Store,Grocery Stores/Supermarkets,Tesco Stores 4579,Supplies and Services related expenditure,12/07/2022,25.25,Director of Children's Services and Education
Amusement/Entertainment,Theatrical Producers,Www.The-Mayflower.Com,Supplies and Services related expenditure,12/07/2022,936,Director of Children's Services and Education
Other Supplies,Misc Speciality Retail,Amznmktplace,Supplies and Services related expenditure,12/07/2022,7.99,Director of Adult Care
Other Supplies,Misc Speciality Retail,Amznmktplace,Supplies and Services related expenditure,12/07/2022,9.98,Director of Adult Care
Other Supplies,Misc Speciality Retail,Amznmktplace,Supplies and Services related expenditure,12/07/2022,11.98,Director of Adult Care
Utility,Utilities/Elec/Gas/H2O/Sani,Castle Water,Premises related expenditure,12/07/2022,51.21,Director of Portsmouth International Port
Utility,Utilities/Elec/Gas/H2O/Sani,Castle Water,Premises related expenditure,12/07/2022,133.6,Director of Portsmouth International Port
Business To Business Eqpt/Furn,Stationery/Office Supplies,Www.Banneruk.Com,Supplies and Services related expenditure,12/07/2022,21.74,"Director of Culture, Leisure & Regulatory Services"
Other Supplies,Misc Speciality Retail,Amznmktplace,Transport related expenditure,12/07/2022,31.96,Director of Adult Care
Other Supplies,Misc Gen Merchandise - Def,B&m 566 - Farlington,Premises related expenditure,12/07/2022,16.66,Director of Children's Services and Education
Type of Retail Store,Grocery Stores/Supermarkets,Wm Morrisons Store,Supplies and Services related expenditure,12/07/2022,8.67,Director of Children's Services and Education
Type of Retail Store,Grocery Stores/Supermarkets,Wm Morrisons Store,Supplies and Services related expenditure,12/07/2022,34.97,Director of Children's Services and Education
Type of Retail Store,Grocery Stores/Supermarkets,Lidl Gb Portsmouth,Supplies and Services related expenditure,12/07/2022,67.76,Director of Children's Services and Education
Digital Goods,"Digital Goods - Media, Books, Movies, Music",Apple.Com/Bill,Supplies and Services related expenditure,12/07/2022,0.66,Director of Children's Services and Education
Digital Goods,Digital Goods - Large Digital Goods Merchant,Apple.Com/Bill,Supplies and Services related expenditure,12/07/2022,0.66,Director of Children's Services and Education
Personal Service Provider,Computer Program/Sys Design,Squarespace Inc.,Supplies and Services related expenditure,12/07/2022,17.44,Director of Children's Services and Education
Type of Retail Store,Grocery Stores/Supermarkets,Asda Groceries Online,Supplies and Services related expenditure,12/07/2022,81.54,Director of Children's Services and Education
Other Supplies,Misc Speciality Retail,Amznmktplace,Supplies and Services related expenditure,12/07/2022,4.98,Director of Corporate Services
Other Supplies,Misc Speciality Retail,Amznmktplace,Supplies and Services related expenditure,12/07/2022,15.98,Director of Regeneration
Type of Retail Store,Grocery Stores/Supermarkets,Tesco Store 3048,Capital related expenditure,12/07/2022,3.77,Capital - Leader
Type of Retail Store,Grocery Stores/Supermarkets,Tesco Store 3048,Capital related expenditure,12/07/2022,3.77,"Director of Housing, Neighbourhood and Building Services"
Type of Retail Store,Grocery Stores/Supermarkets,Tesco Store 3048,Capital related expenditure,12/07/2022,3.77,Capital - Housing RA
Type of Retail Store,Grocery Stores/Supermarkets,Tesco Store 3048,Capital related expenditure,12/07/2022,3.77,Capital - Housing RA
Type of Retail Store,Grocery Stores/Supermarkets,Tesco Store 3048,Capital related expenditure,12/07/2022,3.77,"Director of Housing, Neighbourhood and Building Services"
Type of Retail Store,Grocery Stores/Supermarkets,Tesco Store 3048,Capital related expenditure,12/07/2022,3.77,Capital - Housing RA
Type of Retail Store,Grocery Stores/Supermarkets,Tesco Store 3048,Capital related expenditure,12/07/2022,3.77,Capital - Housing RA
Type of Retail Store,Grocery Stores/Supermarkets,Tesco Store 3048,Capital related expenditure,12/07/2022,3.77,"Capital - Culture, Leisure & Economic Development"
Transportation Conveyor,Passenger Railways,Trainline,Transport related expenditure,12/07/2022,86.5,Director of Regeneration
Transportation Conveyor,Passenger Railways,Trainline,Transport related expenditure,12/07/2022,92.9,Director of Regeneration
Type of Retail Store,Misc Food Stores - Default,Premier Fresh & Local,Supplies and Services related expenditure,12/07/2022,1.48,Director of Children's Services and Education
Type of Retail Store,Grocery Stores/Supermarkets,Tesco Gift Card,Supplies and Services related expenditure,12/07/2022,20.83,Director of Children's Services and Education
Type of Retail Store,Grocery Stores/Supermarkets,Asda Stores,Supplies and Services related expenditure,12/07/2022,13.33,Director of Children's Services and Education
Type of Retail Store,Grocery Stores/Supermarkets,Asda Stores,Supplies and Services related expenditure,12/07/2022,27.32,Director of Children's Services and Education
Business Expenses/Services,Stationery Stores,Selsey Press Limited,Supplies and Services related expenditure,12/07/2022,277,"Director of Culture, Leisure & Regulatory Services"
Other Supplies,Misc Speciality Retail,Amznbusiness,Supplies and Services related expenditure,12/07/2022,59.99,Director of Children's Services and Education
Type of Retail Store,Grocery Stores/Supermarkets,Wm Morrisons Store,Supplies and Services related expenditure,12/07/2022,17.5,Director of Regeneration
Government Service,Govt Serv - Default,Hampshire County Counc,Supplies and Services related expenditure,12/07/2022,186.43,Director of Children's Services and Education
Business To Business Eqpt/Furn,Stationery/Office Supplies,Www.Banneruk.Com,Supplies and Services related expenditure,12/07/2022,30.19,Director of Finance & Resources
Equipment And Furniture,Household Appliance Stores,Ao Retail Limited,Supplies and Services related expenditure,12/07/2022,349.17,"Director of Housing, Neighbourhood and Building Services"
Type of Retail Store,Grocery Stores/Supermarkets,Tesco Stores 4579,Supplies and Services related expenditure,12/07/2022,11.72,Director of Adult Care
Eating And Drinking Places,Fast Food Restaurants,McDonalds,Supplies and Services related expenditure,12/07/2022,0.99,Director of Children's Services and Education
Eating And Drinking Places,Fast Food Restaurants,McDonalds,Supplies and Services related expenditure,12/07/2022,3.06,Director of Children's Services and Education
Automobile Services & Supplies,Service Stations,Tesco Pfs 4274,Supplies and Services related expenditure,12/07/2022,9,Director of Children's Services and Education
Type of Retail Store,Grocery Stores/Supermarkets,Tesco Stores 4579,Supplies and Services related expenditure,12/07/2022,21,Director of Children's Services and Education
Type of Retail Store,Grocery Stores/Supermarkets,Tesco Store 3055,Supplies and Services related expenditure,12/07/2022,2.2,Director of Children's Services and Education
Government Service,Govt Serv - Default,Hampshire County Counc,Premises related expenditure,12/07/2022,28.66,Director of Children's Services and Education
Government Service,Govt Serv - Default,Hampshire County Counc,Supplies and Services related expenditure,12/07/2022,52.25,Director of Children's Services and Education
Business Expenses/Services,Books/Periodicals/Newspapers,Sp Booklife-Publishi,Supplies and Services related expenditure,12/07/2022,108,Director of Children's Services and Education
Facilities/Repair Supplies,Lumber/Build. Supply Stores,Www.Screwfix.Com,Supplies and Services related expenditure,12/07/2022,133.32,Director of Children's Services and Education
Type of Retail Store,Artist/Craft Shops,Baker Ross,Supplies and Services related expenditure,12/07/2022,196.27,Director of Children's Services and Education
Auto/Vehicle Expenses,Toll And Bridge Fees,M6 Toll,Supplies and Services related expenditure,12/07/2022,5.92,Director of Children's Services and Education
Eating And Drinking Places,Fast Food Restaurants,McDonalds,Supplies and Services related expenditure,12/07/2022,10.33,Director of Children's Services and Education
Hotels And Motels,Lodging/Hotels/Motels/Resorts,Last Drop Village Hote,Supplies and Services related expenditure,12/07/2022,68.33,Director of Children's Services and Education
Personal Service Provider,Real Estate Agents And Managers,Http://Www.Orchardapartm,Supplies and Services related expenditure,12/07/2022,409,Director of Children's Services and Education
Personal Service Provider,Real Estate Agents And Managers,Http://Www.Orchardapartm,Supplies and Services related expenditure,12/07/2022,409,Director of Children's Services and Education
Business To Business Facility/,Industrial Supplies - Def,Arco Limited (Sap),Supplies and Services related expenditure,12/07/2022,8.72,"Director of Culture, Leisure & Regulatory Services"
Auto/Vehicle Expenses,Auto Service Shops/Non Dealer,Solent Motor Services,Transport related expenditure,12/07/2022,64,"Director of Culture, Leisure & Regulatory Services"
Government Service,Govt Serv - Default,Www.Portsmouthcc.Gov.U,Transport related expenditure,12/07/2022,1.75,Director of Children's Services and Education
Facilities/Repair Supplies,Misc Home Furnishing,Posturite Ltd,Supplies and Services related expenditure,12/07/2022,-249.15,"Director of Housing, Neighbourhood and Building Services"
Transportation Conveyor,"Parking Lots, Meters, Garages",Queen Alexandra Hospit,Transport related expenditure,12/07/2022,2,Director of Children's Services and Education
Transportation Conveyor,"Parking Lots, Meters, Garages",3c_*portsmouth City Coun,Transport related expenditure,12/07/2022,1.33,Director of Adult Care
Other Supplies,Discount Stores,Argos Ltd,Supplies and Services related expenditure,12/07/2022,335,Director of Adult Care
Other Supplies,Misc Speciality Retail,Amznmktplace,Supplies and Services related expenditure,12/07/2022,7.93,Director of Children's Services and Education
Type of Retail Store,Sports/Riding Apparel Store,Millets,Premises related expenditure,12/07/2022,28.29,Director of Children's Services and Education
Type of Retail Store,Grocery Stores/Supermarkets,Southern Co-Op 0009,Supplies and Services related expenditure,12/07/2022,6.75,Director of Children's Services and Education
Miscellaneous,Other Direct Marketers,Amazon.Co.Uk,Supplies and Services related expenditure,12/07/2022,30,Director of Children's Services and Education
Miscellaneous,Other Direct Marketers,Amazon.Co.Uk,Supplies and Services related expenditure,12/07/2022,30,Director of Children's Services and Education
Hotels And Motels,Travelodge,Travelodge Gb0000,Supplies and Services related expenditure,12/07/2022,52.68,Director of Children's Services and Education
Medical,Lab/Med/Hospital Equipment,Wightman & Parrish Ltd,Premises related expenditure,12/07/2022,126.48,"Director of Housing, Neighbourhood and Building Services"
Type of Retail Store,Grocery Stores/Supermarkets,Southern Co-Op 0008,Supplies and Services related expenditure,12/07/2022,49,Director of Children's Services and Education
Type of Retail Store,Grocery Stores/Supermarkets,Southern Co-Op 0008,Supplies and Services related expenditure,12/07/2022,50,Director of Children's Services and Education
Type of Retail Store,Grocery Stores/Supermarkets,Tesco Stores 4611,Supplies and Services related expenditure,12/07/2022,3.8,"Director of Housing, Neighbourhood and Building Services"
Facilities/Repair Supplies,Bicycle Shops/Sales/Service,Portsmouth Cycle Excha,Supplies and Services related expenditure,12/07/2022,20,"Director of Housing, Neighbourhood and Building Services"
Transportation Conveyor,Passenger Railways,Thetrainline.Com,Supplies and Services related expenditure,12/07/2022,29.42,"Director of Housing, Neighbourhood and Building Services"
Type of Retail Store,Grocery Stores/Supermarkets,Co Op Group Food,Transport related expenditure,12/07/2022,1.21,Director of Children's Services and Education
Amusement/Entertainment,Theatrical Producers,Government Events,Supplies and Services related expenditure,12/07/2022,383.04,"Director of Housing, Neighbourhood and Building Services"
Facilities/Repair Supplies,Home Supply Warehouse Stores,B & Q 1260,Supplies and Services related expenditure,12/07/2022,111.93,Director of Children's Services and Education
Government Service,Govt Serv - Default,Dvsa,Supplies and Services related expenditure,12/07/2022,23,Director of Children's Services and Education
Facilities/Repair Supplies,Lawn/Garden Supply/Nursery,Carters Of Swanwic,Supplies and Services related expenditure,12/07/2022,144.27,"Director of Housing, Neighbourhood and Building Services"
Auto/Vehicle Expenses,Toll And Bridge Fees,M6 Toll,Supplies and Services related expenditure,12/07/2022,7.1,Director of Children's Services and Education
Eating And Drinking Places,Fast Food Restaurants,McDonalds,Supplies and Services related expenditure,12/07/2022,13.38,Director of Children's Services and Education
Hotels And Motels,Travelodge,Travelodge Gb0000,Agency and Third Party Payments related expenditure,12/07/2022,3618.21,"Director of Housing, Neighbourhood and Building Services"
Type of Retail Store,Grocery Stores/Supermarkets,Lidl Gb Portchester,Supplies and Services related expenditure,12/07/2022,1.87,Director of Adult Care
Business To Business Eqpt/Furn,Book Stores,Eden Co Uk,Supplies and Services related expenditure,12/07/2022,-6.65,Director of Children's Services and Education
Business Services,Business Services - Default,St Thomas Training Ltd,Employees related expenditure,12/07/2022,30,Director of Adult Care
Type of Retail Store,Grocery Stores/Supermarkets,Asda Stores,Supplies and Services related expenditure,12/07/2022,25.14,"Director of Housing, Neighbourhood and Building Services"
Government Service,Govt Serv - Default,Fareham Borough Counci,Supplies and Services related expenditure,12/07/2022,65,Solent LEP
Type of Retail Store,Grocery Stores/Supermarkets,Tesco Store 3055,Supplies and Services related expenditure,12/07/2022,6.1,Director of Children's Services and Education
Business Expenses/Services,Books/Periodicals/Newspapers,Sp Books4people,Supplies and Services related expenditure,12/07/2022,107.29,Director of Children's Services and Education
Other Supplies,Misc Speciality Retail,Timpson Ltd,Supplies and Services related expenditure,12/07/2022,30,"Director of Housing, Neighbourhood and Building Services"
Business To Business Facility/,Industrial Supplies - Def,Arco Limited (Sap),Supplies and Services related expenditure,12/07/2022,146.02,"Director of Housing, Neighbourhood and Building Services"
Government Service,Colleges/Univ/Jc/Profession,The Oxford College Of,Supplies and Services related expenditure,12/07/2022,360,Director of Children's Services and Education
Other Supplies,Misc Speciality Retail,Amznmktplace,Supplies and Services related expenditure,12/07/2022,3.28,"Director of Culture, Leisure & Regulatory Services"
Other Supplies,Misc Speciality Retail,Amznmktplace,Supplies and Services related expenditure,12/07/2022,5.17,"Director of Culture, Leisure & Regulatory Services"
Other Supplies,Misc Speciality Retail,Amznmktplace,Supplies and Services related expenditure,12/07/2022,50.29,"Director of Culture, Leisure & Regulatory Services"
Government Service,Govt Serv - Default,Hampshire County Counc,Supplies and Services related expenditure,12/07/2022,713.25,Director of Children's Services and Education
Other Supplies,Misc Speciality Retail,Amznbusiness,Supplies and Services related expenditure,12/07/2022,5.14,Director of Children's Services and Education
Other Supplies,Misc Speciality Retail,Amznbusiness,Supplies and Services related expenditure,12/07/2022,31.9,Director of Children's Services and Education
Other Supplies,Misc Speciality Retail,Amznbusiness,Supplies and Services related expenditure,12/07/2022,31.9,Director of Children's Services and Education
Government Service,Govt Serv - Default,Security Industry Auth,Supplies and Services related expenditure,12/07/2022,190,"Director of Housing, Neighbourhood and Building Services"
Government Service,Business/Secretarial School,Highspeedtraining.Co.U,Supplies and Services related expenditure,12/07/2022,25,"Director of Housing, Neighbourhood and Building Services"
Amusement/Entertainment,Amusement/Rec Serv - Def,Stansted Park,Supplies and Services related expenditure,12/07/2022,233,"Director of Culture, Leisure & Regulatory Services"
Other Supplies,Misc Speciality Retail,Www.Justgloves.Co.Uk,Premises related expenditure,12/07/2022,180,"Director of Culture, Leisure & Regulatory Services"
Business To Business Eqpt/Furn,Computer Software Stores,Sp Jennychem,Premises related expenditure,12/07/2022,374.58,"Director of Culture, Leisure & Regulatory Services"
Type of Retail Store,Pet Stores/Food & Supply,Maidenhead Aquatics @,Supplies and Services related expenditure,12/07/2022,20.83,Director of Adult Care
Other Supplies,Misc Speciality Retail,Amznmktplace,Supplies and Services related expenditure,12/07/2022,6.66,Director of Children's Services and Education
Eating And Drinking Places,Fast Food Restaurants,43022190 Costa Coffee,Supplies and Services related expenditure,12/07/2022,6.37,Director of Children's Services and Education
Transportation Conveyor,Passenger Railways,Victoria Tic,Transport related expenditure,12/07/2022,10,Director of Children's Services and Education
Transportation Conveyor,Passenger Railways,Swrailway Tck Off,Transport related expenditure,12/07/2022,21.2,Director of Children's Services and Education
Government Service,Govt Serv - Default,2maa031635926 Td E-Pmt,Supplies and Services related expenditure,12/07/2022,75,Director of Children's Services and Education
Other Supplies,Discount Stores,Argos Ltd,Supplies and Services related expenditure,12/07/2022,26.45,Director of Children's Services and Education
Facilities/Repair Supplies,Hardware Stores,Www.Schoolmeritstickers.,Supplies and Services related expenditure,12/07/2022,161.95,Director of Children's Services and Education
Business To Business Services,Misc Publishing & Printing,Asher Design & Print Ltd,Supplies and Services related expenditure,12/07/2022,15,Director of Children's Services and Education
Type of Retail Store,Grocery Stores/Supermarkets,Wm Morrisons Store,Supplies and Services related expenditure,12/07/2022,25.01,Director of Children's Services and Education
Type of Retail Store,Grocery Stores/Supermarkets,Lidl Gb Portsmouth,Supplies and Services related expenditure,12/07/2022,4.33,Director of Children's Services and Education
Type of Retail Store,Grocery Stores/Supermarkets,Lidl Gb Portsmouth,Supplies and Services related expenditure,12/07/2022,15.54,Director of Children's Services and Education
Business To Business Eqpt/Furn,Stationery/Office Supplies,Www.Banneruk.Com,Supplies and Services related expenditure,12/07/2022,92.47,Director of Corporate Services
Business To Business Eqpt/Furn,Stationery/Office Supplies,Www.Banneruk.Com,Supplies and Services related expenditure,12/07/2022,17.34,Director of Children's Services and Education
Medical,Lab/Med/Hospital Equipment,Bitepro Limited,Supplies and Services related expenditure,12/07/2022,214.6,Director of Children's Services and Education
Business To Business Eqpt/Furn,Stationery/Office Supplies,Www.Banneruk.Com,Supplies and Services related expenditure,12/07/2022,6.09,Director of Corporate Services
Business Services,Business Services - Default,Cisco Systems,Supplies and Services related expenditure,12/07/2022,15.04,Director of Corporate Services
Equipment And Furniture,Household Appliance Stores,Ebuyer (UK) Ltd,Supplies and Services related expenditure,12/07/2022,139.81,"Director of Housing, Neighbourhood and Building Services"
